Workbook

Sheet EventConfig
A1: ID | B1: EventLinksId | C1: EventTriggerType | D1: EventTag | E1: EventType | F1: Score | G1: EventQuality | I1: PrizeIDs | J1: PrizeNums | K1: RelatedEvents | L1: RefreshProbability | M1: RefreshCount | N1: placeID | O1: XiantuID | Q1: EventConditionId | R1: EventValue | S1: EventCount | T1: EventName | U1: Description
A2: int | B2: int[] | C2: int | D2: int | E2: int | F2: int | G2: int | I2: int[] | J2: int[] | K2: int[] | L2: int | M2: int | N2: int | O2: int | Q2: int | R2: int[] | S2: int | T2: int | U2: int
Y3: 1 | Z3: 2 | AA3: 3 | AB3: 4 | AC3: 5 | AD3: 6 | AE3: 7 | AF3: 8 | AG3: 9 | AH3: 10 | AI3: 11 | AJ3: 12 | AK3: 13 | AL3: 14 | AM3: 15 | AN3: 16 | AO3: 17 | AP3: 18 | AQ3: 19 | AR3: 20
A4: ID | B4: 事件包含的ID | C4: 事件类型： 1.通用事件 2.挂机事件 4.主线任务 5.仙山探险 6.支线事件 99.无标记 | D4: tag 1主线2支线 3通用 4地图通用 5道友6任务 | E4: 1.正常触发 2.直接结算 | F4: 增加进度值 | G4: 事件品质 | I4: 事件结局奖励 | J4: 事件结局奖励数量 | K4: 关联的事件Id | L4: 刷新的概率 （100=100%） | M4: 最大刷新数量 | N4: 属于哪张地图 | O4: 仙途日志ID | P4: 触发条件 | Q4: 触发条件类型 只能配处于什么状态和数值，不能配变化的数值 | R4: 触发效果值 | S4: 触发判定数量or次数 | T4: 任务标题 | U4: 任务详情界面的总描述 | V4: 标题 | W4: 整体描述 | X4: 总步数 | Y4: 步骤1 | Z4: 步骤2 | AA4: 步骤3 | AB4: 步骤4 | AC4: 步骤5 | AD4: 步骤6 | AE4: 步骤7 | AF4: 步骤8 | AG4: 步骤9 | AH4: 步骤10 | AI4: 步骤11 | AJ4: 步骤12 | AK4: 步骤13 | AL4: 步骤14 | AM4: 步骤15 | AN4: 步骤16 | AO4: 步骤17 | AP4: 步骤18 | AQ4: 步骤19 | AR4: 步骤20
A5: 1 | B5: =_xlfn.TEXTJOIN(";",1,Y5:AN5) -> 1001;1002;1003;1004;1005 | C5: 1 | D5: 3 | E5: 1 | F5: 0 | G5: 1 | I5: 1001 | J5: 10 | N5: 8 | O5: 4 | P5: =IF(Q5="","",VLOOKUP(Q5,条件类型查询!A:B,2,FALSE)) -> 境界判断 | Q5: 3 | R5: 5 | T5: 174 | U5: 1936 | V5: 受伤的狼 | W5: 你发现一只奄奄一息的狼，决定上前一探究竟。 | Y5: 1001 | Z5: 1002 | AA5: 1003 | AB5: 1004 | AC5: 1005
A6: 2 | B6: =_xlfn.TEXTJOIN(";",1,Y6:AN6) -> 1010;1011;1012;1013;1014;1015;1016 | C6: 1 | D6: 3 | E6: 1 | F6: 0 | G6: 1 | I6: 1001 | J6: 10 | N6: 9 | O6: 4 | P6: =IF(Q6="","",VLOOKUP(Q6,条件类型查询!A:B,2,FALSE)) ->  | T6: 175 | U6: 1937 | V6: 鹬蚌相争 | W6: 附近的小树林闹的不可开交，你决定去看看怎么回事。 | Y6: 1010 | Z6: 1011 | AA6: 1012 | AB6: 1013 | AC6: 1014 | AD6: 1015 | AE6: 1016
A7: 3 | B7: 1020;1021;1022;1023;1024;1025;1026 | C7: 99 | D7: 2 | E7: 1 | F7: 10 | G7: 1 | I7: 1001 | J7: 10 | N7: 10 | O7: 4 | P7: =IF(Q7="","",VLOOKUP(Q7,条件类型查询!A:B,2,FALSE)) -> 拥有特定道具 | Q7: 1 | R7: 1004 | S7: 1 | T7: 176 | U7: 1938 | V7: 鹬蚌相争2 | W7: 附近的小树林闹的不可开交，你决定去看看怎么回事。 | Y7: 1020 | Z7: 1021 | AA7: 1022 | AB7: 1023 | AC7: 1024 | AD7: 1025 | AE7: 1026
P8: =IF(Q8="","",VLOOKUP(Q8,条件类型查询!A:B,2,FALSE)) -> 
A9: 4 | B9: 1030 | C9: 1 | D9: 1 | E9: 2 | F9: 0 | G9: 1 | I9: 1001 | J9: 10 | N9: 5 | O9: 3 | P9: =IF(Q9="","",VLOOKUP(Q9,条件类型查询!A:B,2,FALSE)) -> 触发概率 | Q9: 7 | R9: 500 | T9: 217 | U9: 1939 | V9: 溅血背包 | W9: 不远处有一个小红点，走近一看你发现是一个带血的背包。 | Y9: 1030
A10: 5 | B10: 1040 | C10: 1 | D10: 1 | E10: 2 | F10: 0 | G10: 1 | I10: 1001 | J10: 10 | N10: 5 | O10: 3 | P10: =IF(Q10="","",VLOOKUP(Q10,条件类型查询!A:B,2,FALSE)) ->  | T10: 218 | U10: 1940 | V10: 废弃矿山 | W10: 底下一座矿山甚是磅礴雄伟，走，去看一看。 | Y10: 1040
A11: 6 | B11: 1050 | C11: 1 | D11: 1 | E11: 2 | F11: 0 | G11: 1 | I11: 1001 | J11: 10 | N11: 6 | O11: 3 | P11: =IF(Q11="","",VLOOKUP(Q11,条件类型查询!A:B,2,FALSE)) ->  | T11: 219 | U11: 1941 | V11: 吵架声 | W11: 你被一男一女的吵架声吸引。 | Y11: 1050
A12: 7 | B12: 1060 | C12: 1 | D12: 1 | E12: 2 | F12: 0 | G12: 1 | I12: 1001 | J12: 10 | N12: 7 | O12: 3 | P12: =IF(Q12="","",VLOOKUP(Q12,条件类型查询!A:B,2,FALSE)) ->  | T12: 220 | U12: 1942 | V12: 一座道观 | W12: 远处一座道观仙气缭绕，似有仙人在此。 | Y12: 1060
P13: =IF(Q13="","",VLOOKUP(Q13,条件类型查询!A:B,2,FALSE)) -> 
A14: 11 | B14: 1101;1102 | C14: 2 | E14: 1 | F14: 0 | G14: 1 | I14: 1001 | J14: 10 | P14: =IF(Q14="","",VLOOKUP(Q14,条件类型查询!A:B,2,FALSE)) ->  | V14: 遇到怪物1-修为 | X14: =COUNTIF(EventLinkConfig!K:K,EventConfig!A14) -> 2 | Y14: =IF($X14>=Y$3,$A14*100+Y$3,"") -> 1101 | Z14: =IF($X14>=Z$3,$A14*100+Z$3,"") -> 1102
A15: 12 | B15: 1201;1202;1203 | C15: 2 | E15: 1 | F15: 0 | G15: 1 | I15: 1001 | J15: 10 | P15: =IF(Q15="","",VLOOKUP(Q15,条件类型查询!A:B,2,FALSE)) ->  | V15: 对话-功法灵气 | X15: =COUNTIF(EventLinkConfig!K:K,EventConfig!A15) -> 3 | Y15: =IF($X15>=Y$3,$A15*100+Y$3,"") -> 1201 | Z15: 1202 | AA15: 1203
A16: 13 | B16: 1301;1302;1303;1304 | C16: 2 | E16: 1 | F16: 0 | G16: 1 | I16: 1001 | J16: 10 | P16: =IF(Q16="","",VLOOKUP(Q16,条件类型查询!A:B,2,FALSE)) ->  | V16: 对话-法宝灵韵 | X16: =COUNTIF(EventLinkConfig!K:K,EventConfig!A16) -> 4 | Y16: =IF($X16>=Y$3,$A16*100+Y$3,"") -> 1301 | Z16: 1302 | AA16: 1303 | AB16: 1304
A17: 14 | B17: 1401;1402 | C17: 2 | E17: 1 | F17: 0 | G17: 1 | I17: 1001 | J17: 10 | P17: =IF(Q17="","",VLOOKUP(Q17,条件类型查询!A:B,2,FALSE)) ->  | V17: 遇到怪物2-修为 | X17: =COUNTIF(EventLinkConfig!K:K,EventConfig!A17) -> 2 | Y17: =IF($X17>=Y$3,$A17*100+Y$3,"") -> 1401 | Z17: 1402
A18: 15 | B18: 1501;1502 | C18: 2 | E18: 1 | F18: 0 | G18: 1 | I18: 1001 | J18: 10 | P18: =IF(Q18="","",VLOOKUP(Q18,条件类型查询!A:B,2,FALSE)) ->  | V18: 遇到怪物3-修为 | X18: =COUNTIF(EventLinkConfig!K:K,EventConfig!A18) -> 2 | Y18: =IF($X18>=Y$3,$A18*100+Y$3,"") -> 1501 | Z18: 1502
P19: =IF(Q19="","",VLOOKUP(Q19,条件类型查询!A:B,2,FALSE)) -> 
P20: =IF(Q20="","",VLOOKUP(Q20,条件类型查询!A:B,2,FALSE)) -> 
A21: 10001 | B21: 1000101;1000102;1000103;1000104 | C21: 4 | D21: 1 | E21: 1 | F21: 10 | G21: 1 | I21: 1001 | J21: 10 | N21: 1 | O21: 1 | P21: =IF(Q21="","",VLOOKUP(Q21,条件类型查询!A:B,2,FALSE)) ->  | T21: 1906 | U21: 1914 | V21: 鲲鹏何在 | W21: 神识未灭 | X21: =COUNTIF(EventLinkConfig!K:K,EventConfig!A21) -> 4 | Y21: =IF($X21>=Y$3,$A21*100+Y$3,"") -> 1000101 | Z21: =IF($X21>=Z$3,$A21*100+Z$3,"") -> 1000102 | AA21: 1000103 | AB21: 1000104
A22: 10002 | B22: 1000201;1000202;1000203 | C22: 4 | D22: 1 | E22: 1 | F22: 10 | G22: 1 | I22: 1001 | J22: 10 | N22: 1 | O22: 1 | P22: =IF(Q22="","",VLOOKUP(Q22,条件类型查询!A:B,2,FALSE)) ->  | T22: 1907 | U22: 1915 | V22: 北海迷径1 | W22: 御剑而行 | X22: =COUNTIF(EventLinkConfig!K:K,EventConfig!A22) -> 3 | Y22: =IF($X22>=Y$3,$A22*100+Y$3,"") -> 1000201 | Z22: 1000202 | AA22: 1000203
A23: 10003 | B23: 1000301;1000302;1000303;1000304;1000305;1000306;1000307;1000308;1000309 | C23: 4 | D23: 1 | E23: 1 | F23: 10 | G23: 1 | I23: 1001 | J23: 10 | N23: 1 | O23: 1 | P23: =IF(Q23="","",VLOOKUP(Q23,条件类型查询!A:B,2,FALSE)) ->  | T23: 1908 | U23: 1916 | V23: 北海迷径2 | W23: 雀笑大鹏 | X23: =COUNTIF(EventLinkConfig!K:K,EventConfig!A23) -> 9 | Y23: 1000301 | Z23: 1000302 | AA23: 1000303 | AB23: 1000304 | AC23: 1000305 | AD23: 1000306 | AE23: 1000307 | AF23: 1000308 | AG23: 1000309
A24: 10004 | B24: 1000401;1000402;1000403;1000404 | C24: 4 | D24: 1 | E24: 1 | F24: 10 | G24: 1 | I24: 1001 | J24: 10 | N24: 1 | O24: 1 | P24: =IF(Q24="","",VLOOKUP(Q24,条件类型查询!A:B,2,FALSE)) ->  | T24: 1909 | U24: 1917 | V24: 古径阵法 | W24: 击败结界兽 | X24: =COUNTIF(EventLinkConfig!K:K,EventConfig!A24) -> 4 | Y24: 1000401 | Z24: 1000402 | AA24: 1000403 | AB24: 1000404
A25: 10005 | B25: 1000501;1000502;1000503;1000504;1000505;1000506;1000507;1000508;1000509;1000510;1000511;1000512;1000513;1000514 | C25: 4 | D25: 1 | E25: 1 | F25: 10 | G25: 1 | I25: 1001 | J25: 10 | N25: 1 | O25: 1 | P25: =IF(Q25="","",VLOOKUP(Q25,条件类型查询!A:B,2,FALSE)) ->  | T25: 2135 | U25: 2137 | V25: 浮空之岛1 | W25: 初见疯道人 | X25: =COUNTIF(EventLinkConfig!K:K,EventConfig!A25) -> 14 | Y25: 1000501 | Z25: 1000502 | AA25: 1000503 | AB25: 1000504 | AC25: 1000505 | AD25: 1000506 | AE25: 1000507 | AF25: 1000508 | AG25: 1000509 | AH25: 1000510 | AI25: 1000511 | AJ25: 1000512 | AK25: 1000513 | AL25: 1000514
A26: 10006 | B26: 1000601;1000602;1000603;1000604;1000605;1000606 | C26: 4 | D26: 1 | E26: 1 | F26: 10 | G26: 1 | I26: 1001 | J26: 10 | N26: 1 | O26: 1 | P26: =IF(Q26="","",VLOOKUP(Q26,条件类型查询!A:B,2,FALSE)) ->  | T26: 2136 | U26: 2138 | V26: 浮空之岛2 | W26: 筑基中期 | X26: =COUNTIF(EventLinkConfig!K:K,EventConfig!A26) -> 6 | Y26: 1000601 | Z26: 1000602 | AA26: 1000603 | AB26: 1000604 | AC26: 1000605 | AD26: 1000606
A27: 10007 | B27: 1000701;1000702;1000703;1000704;1000705 | C27: 4 | D27: 1 | E27: 1 | F27: 10 | G27: 1 | I27: 1001 | J27: 10 | N27: 1 | O27: 1 | P27: =IF(Q27="","",VLOOKUP(Q27,条件类型查询!A:B,2,FALSE)) ->  | T27: 2801 | U27: 2822 | V27: 风中洞府1 | W27: 击败痴道人 | X27: =COUNTIF(EventLinkConfig!K:K,EventConfig!A27) -> 5 | Y27: =IF($X27>=Y$3,$A27*100+Y$3,"") -> 1000701 | Z27: 1000702 | AA27: 1000703 | AB27: 1000704 | AC27: 1000705
A28: 10008 | B28: 1000801;1000802;1000803;1000804;1000805;1000806;1000807;1000808;1000809;1000810;1000811;1000812;1000813;1000814 | C28: 4 | D28: 1 | E28: 1 | F28: 10 | G28: 1 | I28: 1001 | J28: 10 | N28: 1 | O28: 1 | P28: =IF(Q28="","",VLOOKUP(Q28,条件类型查询!A:B,2,FALSE)) ->  | T28: 2802 | U28: 2823 | V28: 风中洞府2 | W28: 疯痴相聚 | X28: =COUNTIF(EventLinkConfig!K:K,EventConfig!A28) -> 14 | Y28: 1000801 | Z28: 1000802 | AA28: 1000803 | AB28: 1000804 | AC28: 1000805 | AD28: 1000806 | AE28: 1000807 | AF28: 1000808 | AG28: 1000809 | AH28: 1000810 | AI28: 1000811 | AJ28: 1000812 | AK28: 1000813 | AL28: 1000814
A29: 10009 | B29: 1000901;1000902;1000903 | C29: 4 | D29: 1 | E29: 1 | F29: 10 | G29: 1 | I29: 1001 | J29: 10 | N29: 1 | O29: 1 | P29: =IF(Q29="","",VLOOKUP(Q29,条件类型查询!A:B,2,FALSE)) ->  | T29: 2803 | U29: 2824 | V29: 风灵之力 | W29: 筑基后期 | X29: =COUNTIF(EventLinkConfig!K:K,EventConfig!A29) -> 3 | Y29: 1000901 | Z29: 1000902 | AA29: 1000903
A30: 10010 | B30: 1001001 | C30: 4 | D30: 1 | E30: 1 | F30: 10 | G30: 1 | I30: 1001 | J30: 10 | K30: 30003 | N30: 1 | O30: 1 | P30: =IF(Q30="","",VLOOKUP(Q30,条件类型查询!A:B,2,FALSE)) ->  | T30: 2804 | U30: 2825 | V30: 北海深处1 | W30: 妖兽横行 | X30: =COUNTIF(EventLinkConfig!K:K,EventConfig!A30) -> 1 | Y30: 1001001
A31: 10011 | B31: 1001101 | C31: 4 | D31: 1 | E31: 1 | F31: 10 | G31: 1 | I31: 1001 | J31: 10 | N31: 1 | O31: 1 | P31: =IF(Q31="","",VLOOKUP(Q31,条件类型查询!A:B,2,FALSE)) ->  | T31: 2805 | U31: 2826 | V31: 北海深处2 | W31: 遇见鲲鹏 | X31: =COUNTIF(EventLinkConfig!K:K,EventConfig!A31) -> 1 | Y31: 1001101
A32: 10012 | B32: 1001201;1001202;1001203;1001204;1001205;1001206;1001207;1001208;1001209;1001210;1001211;1001212 | C32: 4 | D32: 1 | E32: 1 | F32: 10 | G32: 1 | I32: 1001 | J32: 10 | N32: 2 | O32: 1 | P32: =IF(Q32="","",VLOOKUP(Q32,条件类型查询!A:B,2,FALSE)) ->  | T32: 2806 | U32: 2827 | V32: 尧之都 | W32: 尧让天下 | X32: =COUNTIF(EventLinkConfig!K:K,EventConfig!A32) -> 12 | Y32: =IF($X32>=Y$3,$A32*100+Y$3,"") -> 1001201 | Z32: 1001202 | AA32: 1001203 | AB32: 1001204 | AC32: 1001205 | AD32: 1001206 | AE32: 1001207 | AF32: 1001208 | AG32: 1001209 | AH32: 1001210 | AI32: 1001211 | AJ32: 1001212
A33: 10013 | B33: 1001301;1001302;1001303;1001304;1001305;1001306;1001307;1001308;1001309;1001310;1001311;1001312;1001313;1001314;1001315;1001316 | C33: 4 | D33: 1 | E33: 1 | F33: 10 | G33: 1 | I33: 1001 | J33: 10 | N33: 2 | O33: 1 | P33: =IF(Q33="","",VLOOKUP(Q33,条件类型查询!A:B,2,FALSE)) ->  | T33: 2807 | U33: 2828 | V33: 山林清音 | W33: 访贤许由 | X33: =COUNTIF(EventLinkConfig!K:K,EventConfig!A33) -> 16 | Y33: 1001301 | Z33: 1001302 | AA33: 1001303 | AB33: 1001304 | AC33: 1001305 | AD33: 1001306 | AE33: 1001307 | AF33: 1001308 | AG33: 1001309 | AH33: 1001310 | AI33: 1001311 | AJ33: 1001312 | AK33: 1001313 | AL33: 1001314 | AM33: 1001315 | AN33: 1001316
A34: 10014 | B34: 1001401;1001402;1001403;1001404;1001405;1001406;1001407;1001408 | C34: 4 | D34: 1 | E34: 1 | F34: 10 | G34: 1 | I34: 1001 | J34: 10 | K34: 30004 | N34: 2 | O34: 1 | P34: =IF(Q34="","",VLOOKUP(Q34,条件类型查询!A:B,2,FALSE)) ->  | T34: 2808 | U34: 2829 | V34: 山中劳作 | W34: 割草喝茶 | X34: =COUNTIF(EventLinkConfig!K:K,EventConfig!A34) -> 8 | Y34: 1001401 | Z34: 1001402 | AA34: 1001403 | AB34: 1001404 | AC34: 1001405 | AD34: 1001406 | AE34: 1001407 | AF34: 1001408
A35: 10015 | B35: 1001501;1001502;1001503;1001504;1001505;1001506;1001507;1001508 | C35: 4 | D35: 1 | E35: 1 | F35: 10 | G35: 1 | I35: 1001 | J35: 10 | K35: 30005 | N35: 2 | O35: 1 | P35: =IF(Q35="","",VLOOKUP(Q35,条件类型查询!A:B,2,FALSE)) ->  | T35: 2809 | U35: 2830 | V35: 风起夜战 | W35: 再来一杯 | X35: =COUNTIF(EventLinkConfig!K:K,EventConfig!A35) -> 8 | Y35: 1001501 | Z35: 1001502 | AA35: 1001503 | AB35: 1001504 | AC35: 1001505 | AD35: 1001506 | AE35: 1001507 | AF35: 1001508
A36: 10016 | B36: 1001601;1001602;1001603;1001604;1001605;1001606;1001607;1001608;1001609;1001610;1001611;1001612;1001613 | C36: 4 | D36: 1 | E36: 1 | F36: 10 | G36: 1 | I36: 1001 | J36: 10 | K36: 30006 | N36: 2 | O36: 1 | P36: =IF(Q36="","",VLOOKUP(Q36,条件类型查询!A:B,2,FALSE)) ->  | T36: 2810 | U36: 2831 | V36: 吃茶三问 | W36: 战胜妖王 | X36: =COUNTIF(EventLinkConfig!K:K,EventConfig!A36) -> 13 | Y36: 1001601 | Z36: 1001602 | AA36: 1001603 | AB36: 1001604 | AC36: 1001605 | AD36: 1001606 | AE36: 1001607 | AF36: 1001608 | AG36: 1001609 | AH36: 1001610 | AI36: 1001611 | AJ36: 1001612 | AK36: 1001613
A37: 10017 | B37: 1001701;1001702;1001703;1001704;1001705;1001706;1001707;1001708;1001709;1001710 | C37: 4 | D37: 1 | E37: 1 | F37: 10 | G37: 1 | I37: 1001 | J37: 10 | N37: 2 | O37: 1 | P37: =IF(Q37="","",VLOOKUP(Q37,条件类型查询!A:B,2,FALSE)) ->  | T37: 2811 | U37: 2832 | V37: 尧让天下 | W37: 复命尧帝 | X37: =COUNTIF(EventLinkConfig!K:K,EventConfig!A37) -> 10 | Y37: =IF($X37>=Y$3,$A37*100+Y$3,"") -> 1001701 | Z37: =IF($X37>=Z$3,$A37*100+Z$3,"") -> 1001702 | AA37: 1001703 | AB37: 1001704 | AC37: 1001705 | AD37: 1001706 | AE37: 1001707 | AF37: 1001708 | AG37: 1001709 | AH37: 1001710
A38: 10018 | B38: 1001801;1001802;1001803;1001804;1001805;1001806;1001807;1001808;1001809;1001810;1001811;1001812;1001813;1001814;1001815;1001816 | C38: 4 | D38: 1 | E38: 1 | F38: 10 | G38: 1 | I38: 1001 | J38: 10 | N38: 2 | O38: 1 | P38: =IF(Q38="","",VLOOKUP(Q38,条件类型查询!A:B,2,FALSE)) ->  | T38: 2812 | U38: 2833 | V38: 无用之树 | W38: 树下闲话 | X38: =COUNTIF(EventLinkConfig!K:K,EventConfig!A38) -> 20 | Y38: =IF($X38>=Y$3,$A38*100+Y$3,"") -> 1001801 | Z38: 1001802 | AA38: 1001803 | AB38: 1001804 | AC38: 1001805 | AD38: 1001806 | AE38: 1001807 | AF38: 1001808 | AG38: 1001809 | AH38: 1001810 | AI38: 1001811 | AJ38: 1001812 | AK38: 1001813 | AL38: 1001814 | AM38: 1001815 | AN38: =IF($X38>=AN$3,$A38*100+AN$3,"") -> 1001816 | AO38: =IF($X38>=AO$3,$A38*100+AO$3,"") -> 1001817 | AP38: =IF($X38>=AP$3,$A38*100+AP$3,"") -> 1001818 | AQ38: =IF($X38>=AQ$3,$A38*100+AQ$3,"") -> 1001819 | AR38: =IF($X38>=AR$3,$A38*100+AR$3,"") -> 1001820
A39: 10019 | B39: 1001901;1001902 | C39: 4 | D39: 1 | E39: 1 | F39: 10 | G39: 1 | I39: 1001 | J39: 10 | N39: 2 | O39: 1 | P39: =IF(Q39="","",VLOOKUP(Q39,条件类型查询!A:B,2,FALSE)) ->  | T39: 2813 | U39: 2834 | V39: 樗木之灵 | W39: 切磋切磋 | X39: =COUNTIF(EventLinkConfig!K:K,EventConfig!A39) -> 2 | Y39: =IF($X39>=Y$3,$A39*100+Y$3,"") -> 1001901 | Z39: 1001902
A40: 10020 | B40: 1002001;1002002;1002003;1002004 | C40: 4 | D40: 1 | E40: 1 | F40: 10 | G40: 1 | I40: 1001 | J40: 10 | N40: 2 | O40: 1 | P40: =IF(Q40="","",VLOOKUP(Q40,条件类型查询!A:B,2,FALSE)) ->  | T40: 2814 | U40: 2835 | V40: 游尧都 | W40: 金丹前期 | X40: =COUNTIF(EventLinkConfig!K:K,EventConfig!A40) -> 4 | Y40: 1002001 | Z40: 1002002 | AA40: 1002003 | AB40: 1002004
A41: 10021 | B41: 1002101;1002102;1002103;1002104;1002105;1002106;1002107;1002108;1002109;1002110;1002111;1002112 | C41: 4 | D41: 1 | E41: 1 | F41: 10 | G41: 1 | I41: 1001 | J41: 10 | N41: 2 | O41: 1 | P41: =IF(Q41="","",VLOOKUP(Q41,条件类型查询!A:B,2,FALSE)) ->  | T41: 2815 | U41: 2836 | V41: 再见尧帝 | W41: 仙山传说 | X41: =COUNTIF(EventLinkConfig!K:K,EventConfig!A41) -> 12 | Y41: 1002101 | Z41: 1002102 | AA41: 1002103 | AB41: 1002104 | AC41: 1002105 | AD41: 1002106 | AE41: 1002107 | AF41: 1002108 | AG41: 1002109 | AH41: 1002110 | AI41: 1002111 | AJ41: 1002112 | AK41: =IF($X41>=AK$3,$A41*100+AK$3,"") -> 
A42: 10022 | B42: 1002201;1002202;1002203 | C42: 4 | D42: 1 | E42: 1 | F42: 10 | G42: 1 | I42: 1001 | J42: 10 | K42: 30007 | N42: 3 | O42: 1 | P42: =IF(Q42="","",VLOOKUP(Q42,条件类型查询!A:B,2,FALSE)) ->  | T42: 2816 | U42: 2837 | V42: 云海漫行 | W42: 入山幻阵 | X42: =COUNTIF(EventLinkConfig!K:K,EventConfig!A42) -> 3 | Y42: 1002201 | Z42: 1002202 | AA42: 1002203
A43: 10023 | B43: 1002301;1002302;1002303;1002304;1002305;1002306;1002307;1002308;1002309;1002310;1002311;1002312 | C43: 4 | D43: 1 | E43: 1 | F43: 10 | G43: 1 | I43: 1001 | J43: 10 | N43: 3 | O43: 1 | P43: =IF(Q43="","",VLOOKUP(Q43,条件类型查询!A:B,2,FALSE)) ->  | T43: 2817 | U43: 2838 | V43: 初见惠子 | W43: 葫芦种子 | X43: =COUNTIF(EventLinkConfig!K:K,EventConfig!A43) -> 12 | Y43: =IF($X43>=Y$3,$A43*100+Y$3,"") -> 1002301 | Z43: 1002302 | AA43: 1002303 | AB43: 1002304 | AC43: 1002305 | AD43: 1002306 | AE43: 1002307 | AF43: 1002308 | AG43: 1002309 | AH43: 1002310 | AI43: 1002311 | AJ43: 1002312
A44: 10024 | B44: 1002401;1002402;1002403;1002404;1002405;1002406;1002407 | C44: 4 | D44: 1 | E44: 1 | F44: 10 | G44: 1 | I44: 1001 | J44: 10 | K44: 30008 | N44: 3 | O44: 1 | P44: =IF(Q44="","",VLOOKUP(Q44,条件类型查询!A:B,2,FALSE)) ->  | T44: 2818 | U44: 2839 | V44: 葫芦肥料 | W44: 天肥地肥 | X44: =COUNTIF(EventLinkConfig!K:K,EventConfig!A44) -> 7 | Y44: 1002401 | Z44: 1002402 | AA44: 1002403 | AB44: 1002404 | AC44: 1002405 | AD44: 1002406 | AE44: 1002407
A45: 10025 | B45: 1002501;1002502;1002503;1002504;1002505;1002506;1002507;1002508;1002509 | C45: 4 | D45: 1 | E45: 1 | F45: 10 | G45: 1 | I45: 1001 | J45: 10 | N45: 3 | O45: 1 | P45: =IF(Q45="","",VLOOKUP(Q45,条件类型查询!A:B,2,FALSE)) ->  | T45: 2819 | U45: 2840 | V45: 藐姑射山 | W45: 登山 | X45: =COUNTIF(EventLinkConfig!K:K,EventConfig!A45) -> 9 | Y45: 1002501 | Z45: 1002502 | AA45: 1002503 | AB45: 1002504 | AC45: 1002505 | AD45: 1002506 | AE45: 1002507 | AF45: 1002508 | AG45: 1002509
A46: 10026 | C46: 4 | D46: 1 | E46: 1 | F46: 10 | G46: 1 | I46: 1001 | J46: 10 | N46: 3 | O46: 1 | P46: =IF(Q46="","",VLOOKUP(Q46,条件类型查询!A:B,2,FALSE)) ->  | T46: 2820 | U46: 2841 | V46: 炼器师 | W46: 重铸忘火剑 | X46: =COUNTIF(EventLinkConfig!K:K,EventConfig!A46) -> 0
A47: 10027 | C47: 4 | D47: 1 | E47: 1 | F47: 10 | G47: 1 | I47: 1001 | J47: 10 | N47: 3 | O47: 1 | P47: =IF(Q47="","",VLOOKUP(Q47,条件类型查询!A:B,2,FALSE)) ->  | T47: 2821 | U47: 2842 | V47: 忘火剑 | W47: 护法 | X47: =COUNTIF(EventLinkConfig!K:K,EventConfig!A47) -> 0
A49: 1001 | B49: 1001;1002;1003;1004;1005 | C49: 99 | D49: 4 | E49: 1 | F49: 10 | G49: 1 | I49: 1001 | J49: 10 | T49: 1943 | U49: 1944 | V49: 受伤的鸟 | W49: 你发现一只奄奄一息的鸟，决定上前一探究竟。 | Y49: 1001 | Z49: 1002 | AA49: 1003 | AB49: 1004 | AC49: 1005
A51: 20001 | B51: 1001;1002;1003;1004;1005 | C51: 5 | E51: 1 | F51: 0 | G51: 1 | I51: 1001 | J51: 10 | T51: 174 | U51: 1936 | V51: 受伤的狼 | W51: 你发现一只奄奄一息的狼，决定上前一探究竟。 | Y51: 1001 | Z51: 1002 | AA51: 1003 | AB51: 1004 | AC51: 1005
A52: 20002 | B52: 1010;1011;1012;1013;1014;1015;1016 | C52: 5 | E52: 1 | F52: 0 | G52: 1 | I52: 1001 | J52: 10 | P52: =IF(Q52="","",VLOOKUP(Q52,条件类型查询!A:B,2,FALSE)) ->  | T52: 175 | U52: 1937 | V52: 鹬蚌相争 | W52: 附近的小树林闹的不可开交，你决定去看看怎么回事。 | Y52: 1010 | Z52: 1011 | AA52: 1012 | AB52: 1013 | AC52: 1014 | AD52: 1015 | AE52: 1016
A53: 20003 | B53: 1001;1002;1003;1004;1005 | C53: 5 | E53: 1 | F53: 0 | G53: 1 | I53: 1001 | J53: 10 | T53: 1943 | U53: 1944 | V53: 受伤的鸟 | W53: 你发现一只奄奄一息的鸟，决定上前一探究竟。 | Y53: 1001 | Z53: 1002 | AA53: 1003 | AB53: 1004 | AC53: 1005
A55: 9001 | B55: 1001;1002;1003;1004;1005 | C55: 6 | D55: 3 | E55: 1 | F55: 0 | G55: 1 | I55: 1001 | J55: 10 | T55: 174 | U55: 1936 | V55: 受伤的狼 | W55: 你发现一只奄奄一息的狼，决定上前一探究竟。 | Y55: 1001 | Z55: 1002 | AA55: 1003 | AB55: 1004 | AC55: 1005
A56: 9002 | B56: 1010;1011;1012;1013;1014;1015;1016 | C56: 6 | D56: 3 | E56: 1 | F56: 0 | G56: 1 | I56: 1001 | J56: 10 | P56: =IF(Q56="","",VLOOKUP(Q56,条件类型查询!A:B,2,FALSE)) ->  | T56: 175 | U56: 1937 | V56: 鹬蚌相争 | W56: 附近的小树林闹的不可开交，你决定去看看怎么回事。 | Y56: 1010 | Z56: 1011 | AA56: 1012 | AB56: 1013 | AC56: 1014 | AD56: 1015 | AE56: 1016
A57: 9003 | B57: 9003;9004;9005;9006;9007;9008 | C57: 6 | D57: 5 | E57: 1 | F57: 0 | G57: 1 | I57: 1001 | J57: 10 | T57: 2035 | U57: 2036 | V57: 幽谷剑鸣 | W57: 你在闭关修炼时，感受到一股凌厉的剑意波动。深入探查，发现一名白衣剑修“清霜”盘坐于谷中，周围剑气环绕，正与一柄散发不祥气息的灵剑对峙。她似在参悟剑诀，却灵气不足，剑灵桀骜。 | Y57: 9003 | Z57: 9004 | AA57: 9005 | AB57: 9006 | AC57: 9007 | AD57: 9008
A58: 9025 | C58: 6 | D58: 3 | E58: 1 | F58: 0 | G58: 1 | I58: 1001 | J58: 10 | N58: 1 | O58: 2 | T58: 2067 | U58: 2068 | V58: 惠子.没用的大葫芦 | W58: 惠子种的葫芦没用，他非常生气
A59: 9014 | B59: 9014 | C59: 6 | D59: 3 | E59: 1 | F59: 0 | G59: 1 | I59: 1001 | J59: 10 | K59: 9031 | N59: 2 | O59: 2 | T59: 2069 | U59: 2070 | V59: 发现魔修 | W59: 发现一群魔修，正在夺人钱财 | Y59: 9014
A60: 9031 | B60: 9031 | C60: 6 | D60: 3 | E60: 1 | F60: 0 | G60: 1 | I60: 1001 | J60: 10 | L60: 30 | M60: 2 | N60: 3 | O60: 2 | T60: 2071 | U60: 2072 | V60: 魔修 | W60: 打败魔休 | Y60: 9031
A62: 30001 | C62: 99 | D62: 6 | E62: 1 | F62: 0 | G62: 1 | L62: 50 | M62: 5 | X62: =COUNTIF(EventLinkConfig!K:K,EventConfig!A62) -> 0 | Y62: =IF($X62>=Y$3,$A62*100+Y$3,"") -> 
A63: 30002 | C63: 99 | D63: 6 | E63: 1 | F63: 0 | G63: 1 | L63: 50 | M63: 1 | X63: =COUNTIF(EventLinkConfig!K:K,EventConfig!A63) -> 0
A64: 30003 | B64: 3000301 | C64: 99 | D64: 6 | E64: 1 | F64: 0 | G64: 1 | L64: 50 | M64: 1 | N64: 1 | X64: =COUNTIF(EventLinkConfig!K:K,EventConfig!A64) -> 1 | Y64: 3000301
A65: 30004 | B65: 3000401 | C65: 99 | D65: 6 | E65: 1 | F65: 0 | G65: 1 | L65: 50 | M65: 3 | N65: 2 | X65: =COUNTIF(EventLinkConfig!K:K,EventConfig!A65) -> 1 | Y65: 3000401
A66: 30005 | B66: 3000501 | C66: 99 | D66: 6 | E66: 1 | F66: 0 | G66: 1 | L66: 50 | M66: 1 | N66: 2 | X66: =COUNTIF(EventLinkConfig!K:K,EventConfig!A66) -> 1 | Y66: 3000501
A67: 30006 | B67: 3000601 | C67: 99 | D67: 6 | E67: 1 | F67: 0 | G67: 1 | L67: 50 | M67: 1 | N67: 2 | X67: =COUNTIF(EventLinkConfig!K:K,EventConfig!A67) -> 1 | Y67: 3000601
A68: 30007 | B68: 3000701 | C68: 99 | D68: 6 | E68: 1 | F68: 0 | G68: 1 | L68: 50 | M68: 1 | N68: 3 | X68: =COUNTIF(EventLinkConfig!K:K,EventConfig!A68) -> 1 | Y68: 3000701
A69: 30008 | B69: 3000801 | C69: 99 | D69: 6 | E69: 1 | F69: 0 | G69: 1 | L69: 15 | M69: 1 | N69: 3 | X69: =COUNTIF(EventLinkConfig!K:K,EventConfig!A69) -> 1 | Y69: 3000801

Sheet EventLinkConfig
A1: ID | B1: conciseEventMessage | D1: EventConditionMessage | F1: NPCID | H1: LanID | J1: DialogueType | K1: EventID | M1: ConditionId | Q1: optionType | R1: optionPara1 | S1: optionPara2 | Y1: PrizeIDs | Z1: PrizeNums | AA1: ResultType | AB1: ResultOptions
A2: int | B2: int | D2: int | F2: int | H2: int[] | J2: int | K2: int | M2: int[] | Q2: int | R2: int[] | S2: int[] | Y2: int[] | Z2: int[] | AA2: int | AB2: int[]
A4: 条件ID | B4: 任务列表中的简洁描述 | C4: 任务列表中的简洁描述 | D4: 无任务目标时的补充文本 | E4: 无任务目标时的补充文本 | F4: 对话NPCID | G4: NPC | H4: 对话 | I4: 对话1 | J4: 对话框类型 | K4: 属于哪个事件 | L4: 步骤 | M4: 条件判断类型 | N4: 任务目标1 | O4: 任务目标2 | P4: 条件判断内容 | Q4: 步骤类型 1=提供选项 2=进入战斗 3=获得奖励 4=扣除道具 | R4: 事件常量1 1=步骤IDs 2=战斗ID | S4: 事件常量2 1=事件文本 | T4: 选择1 | U4: 选择1 | V4: 选择2 | W4: 选择2 | Y4: 事件结局奖励 | Z4: 事件结局奖励数量 | AA4: 事件结束类型 1：跳转步骤 2：根据战斗结果跳转 3.触发新事件 | AB4: 事件结局后提供的选项 1.EventLinkId 2.胜利id;失败id 3.EventConfigId
A5: 100 | H5: 216 | I5: 你被怪物击败，神识也随之消散了。 | M5: =_xlfn.TEXTJOIN(";",1,N5:O5) ->  | P5: =IF(N5="","","-"&VLOOKUP(N5,EventConditionConfig!A:C,3,FALSE)&IF(O5="","",CHAR(10)&"-"&VLOOKUP(O5,EventConditionConfig!A:C,3,FALSE))) -> 
A6: 101 | H6: 3011 | I6: 你败下阵来，感到头晕目眩，试图努力回忆起刚才发生的事情。(回到主界面重新触发剧情） | M6: =_xlfn.TEXTJOIN(";",1,N6:O6) ->  | P6: =IF(N6="","","-"&VLOOKUP(N6,EventConditionConfig!A:C,3,FALSE)&IF(O6="","",CHAR(10)&"-"&VLOOKUP(O6,EventConditionConfig!A:C,3,FALSE))) -> 
A7: 102 | H7: 3012 | I7: 战斗胜利，你的任务进度增加了。
P8: =IF(N8="","","-"&VLOOKUP(N8,EventConditionConfig!A:C,3,FALSE)&IF(O8="","",CHAR(10)&"-"&VLOOKUP(O8,EventConditionConfig!A:C,3,FALSE))) -> 
A9: 1001 | B9: 177 | F9: 2 | H9: 177 | I9: 你遇到一只奄奄一息的野狼，从周围四散的血迹来看，想必它刚才经历了一场恶战。 | P9: =IF(N9="","","-"&VLOOKUP(N9,EventConditionConfig!A:C,3,FALSE)&IF(O9="","",CHAR(10)&"-"&VLOOKUP(O9,EventConditionConfig!A:C,3,FALSE))) ->  | Q9: 1 | R9: 1002;1003 | S9: 198;199 | U9: 趁它虚弱赶紧除掉它！ | W9: 你不忍见它受苦，选择帮它减轻痛苦。
A10: 1002 | B10: 178 | H10: 178 | I10: 野狼用它最后一口气，朝你扑了过来！ | P10: =IF(N10="","","-"&VLOOKUP(N10,EventConditionConfig!A:C,3,FALSE)&IF(O10="","",CHAR(10)&"-"&VLOOKUP(O10,EventConditionConfig!A:C,3,FALSE))) ->  | Q10: 2 | R10: 100001 | AA10: 2 | AB10: 1004;100
A11: 1003 | B11: 179 | H11: 179 | I11: 你抽出匕首准备了结它的生命，却发现怀中还躺着一只刚出生的狼崽。 | P11: =IF(N11="","","-"&VLOOKUP(N11,EventConditionConfig!A:C,3,FALSE)&IF(O11="","",CHAR(10)&"-"&VLOOKUP(O11,EventConditionConfig!A:C,3,FALSE))) ->  | Q11: 1 | R11: 1005 | S11: 200
A12: 1004 | B12: 180 | H12: 180 | I12: 随着你的最后一击，野狼应声倒下，你罔顾它幽怨的眼神，从它怀中拿走了一些财物。 | P12: =IF(N12="","","-"&VLOOKUP(N12,EventConditionConfig!A:C,3,FALSE)&IF(O12="","",CHAR(10)&"-"&VLOOKUP(O12,EventConditionConfig!A:C,3,FALSE))) ->  | Q12: 3 | Y12: 1002 | Z12: 100
A13: 1005 | B13: 181 | H13: 181 | I13: 母狼似乎懂你要做什么，眼神归于平静。你终结了她，决定收养这只小狼仔。 | P13: =IF(N13="","","-"&VLOOKUP(N13,EventConditionConfig!A:C,3,FALSE)&IF(O13="","",CHAR(10)&"-"&VLOOKUP(O13,EventConditionConfig!A:C,3,FALSE))) ->  | Q13: 3 | Y13: 1001 | Z13: 50
P14: =IF(N14="","","-"&VLOOKUP(N14,EventConditionConfig!A:C,3,FALSE)&IF(O14="","",CHAR(10)&"-"&VLOOKUP(O14,EventConditionConfig!A:C,3,FALSE))) -> 
A15: 1010 | B15: 182 | H15: 182 | I15: 从不远处传来刀剑声，听起来双方已经精疲力尽了。 | P15: =IF(N15="","","-"&VLOOKUP(N15,EventConditionConfig!A:C,3,FALSE)&IF(O15="","",CHAR(10)&"-"&VLOOKUP(O15,EventConditionConfig!A:C,3,FALSE))) ->  | Q15: 1 | R15: 1011;1012 | S15: 201;202 | U15: 去看看 | W15: (需拥有法宝凝神珠）听起来都是鸡毛蒜皮的小摩擦，你选择祭出凝神珠化解他们的怨气。
A16: 1011 | B16: 183 | H16: 183 | I16: 你走进一看，原来是一伙山贼分赃不均内讧了起来。你看着旁边被砍的七零八落的轿子和这群山贼，选择怎么做呢： | P16: =IF(N16="","","-"&VLOOKUP(N16,EventConditionConfig!A:C,3,FALSE)&IF(O16="","",CHAR(10)&"-"&VLOOKUP(O16,EventConditionConfig!A:C,3,FALSE))) ->  | Q16: 1 | R16: 1014;1015 | S16: 203;204 | U16: 你顿时杀心四起，决定杀了贼寇，救出轿中之人 | W16: 盗贼们个个双眼杀的通红，你决定来个渔翁得利。
A17: 1012 | B17: 184 | H17: 184;187 | I17: 法宝现身，效果立竿见影，刀剑声逐渐消失，这个世界安静了。 | P17: =IF(N17="","","-"&VLOOKUP(N17,EventConditionConfig!A:C,3,FALSE)&IF(O17="","",CHAR(10)&"-"&VLOOKUP(O17,EventConditionConfig!A:C,3,FALSE))) ->  | Q17: 3 | Y17: 1001 | Z17: 10 | AD17: 1 | AE17: 1001;1
A18: 1014 | B18: 185 | H18: 185 | I18: 你怒斥贼寇的恶行，贼寇们被你激怒了，准备迎战！ | P18: =IF(N18="","","-"&VLOOKUP(N18,EventConditionConfig!A:C,3,FALSE)&IF(O18="","",CHAR(10)&"-"&VLOOKUP(O18,EventConditionConfig!A:C,3,FALSE))) ->  | Q18: 2 | R18: 100002 | AA18: 2 | AB18: 1016;100 | AD18: 2 | AE18: 4;150
A19: 1015 | B19: 186 | H19: 186;189 | I19: 你趁人不备顺走了轿内主人的包裹，任留轿内人痛苦的挣扎。 | P19: =IF(N19="","","-"&VLOOKUP(N19,EventConditionConfig!A:C,3,FALSE)&IF(O19="","",CHAR(10)&"-"&VLOOKUP(O19,EventConditionConfig!A:C,3,FALSE))) ->  | Q19: 3 | Y19: 1003 | Z19: 1000
A20: 1016 | B20: 188 | H20: 188 | I20: 杀退贼寇，你上演了一出英雄救美的桥段。姑娘为了答谢你的救命之恩，将藏在贴身处的珍贵首饰赠与你作为定情信物。 | P20: =IF(N20="","","-"&VLOOKUP(N20,EventConditionConfig!A:C,3,FALSE)&IF(O20="","",CHAR(10)&"-"&VLOOKUP(O20,EventConditionConfig!A:C,3,FALSE))) ->  | Y20: 1001 | Z20: 200
P21: =IF(N21="","","-"&VLOOKUP(N21,EventConditionConfig!A:C,3,FALSE)&IF(O21="","",CHAR(10)&"-"&VLOOKUP(O21,EventConditionConfig!A:C,3,FALSE))) -> 
A22: 1020 | B22: 190 | H22: 190 | I22: 从不远处传来刀剑声，听起来双方已经精疲力尽了。 | P22: =IF(N22="","","-"&VLOOKUP(N22,EventConditionConfig!A:C,3,FALSE)&IF(O22="","",CHAR(10)&"-"&VLOOKUP(O22,EventConditionConfig!A:C,3,FALSE))) ->  | Q22: 1 | R22: 1021;1022 | S22: 201;202 | U22: 去看看 | W22: 使用法宝息事宁人
A23: 1021 | B23: 191 | H23: 191 | I23: 你走进一看，原来是一伙山贼抢了一名坐在官轿内的女子，因分赃不均内讧了起来。山贼二话不说就朝你冲了过来！ | P23: =IF(N23="","","-"&VLOOKUP(N23,EventConditionConfig!A:C,3,FALSE)&IF(O23="","",CHAR(10)&"-"&VLOOKUP(O23,EventConditionConfig!A:C,3,FALSE))) ->  | Q23: 2 | R23: 100003 | Y23: 1002 | Z23: 100 | AA23: 2 | AB23: 1026;100
A24: 1022 | B24: 192 | H24: 192 | I24: 法宝现身，效果立竿见影，刀剑声逐渐消失，这个世界安静了。 | P24: =IF(N24="","","-"&VLOOKUP(N24,EventConditionConfig!A:C,3,FALSE)&IF(O24="","",CHAR(10)&"-"&VLOOKUP(O24,EventConditionConfig!A:C,3,FALSE))) ->  | Q24: 4 | Y24: 1002 | Z24: 10 | AD24: 1 | AE24: 1001;1
A25: 1024 | B25: 193 | H25: 193;196 | I25: 你大声怒斥贼寇的恶行，贼首发现你了，准备迎战！ | P25: =IF(N25="","","-"&VLOOKUP(N25,EventConditionConfig!A:C,3,FALSE)&IF(O25="","",CHAR(10)&"-"&VLOOKUP(O25,EventConditionConfig!A:C,3,FALSE))) ->  | Q25: 2 | R25: 100004 | Y25: 1004 | Z25: 100 | AA25: 2 | AB25: 1016;100 | AD25: 2 | AE25: 4;150
A26: 1025 | B26: 194 | H26: 194;197 | I26: 你趁人不备顺走了轿内主人的包裹，任留轿内人痛苦的挣扎。 | P26: =IF(N26="","","-"&VLOOKUP(N26,EventConditionConfig!A:C,3,FALSE)&IF(O26="","",CHAR(10)&"-"&VLOOKUP(O26,EventConditionConfig!A:C,3,FALSE))) ->  | Q26: 3 | Y26: 1002 | Z26: 1000
A27: 1026 | B27: 207 | H27: 207 | I27: 你将山贼们打的落花流水，成功吸引了山贼头子的注意。 | P27: =IF(N27="","","-"&VLOOKUP(N27,EventConditionConfig!A:C,3,FALSE)&IF(O27="","",CHAR(10)&"-"&VLOOKUP(O27,EventConditionConfig!A:C,3,FALSE))) ->  | Q27: 1 | R27: 1024;1025 | S27: 205;206 | U27: 选择正面迎战山贼头领（困难） | W27: 你决定避开山贼头领的视线，来个渔翁得利。
P28: =IF(N28="","","-"&VLOOKUP(N28,EventConditionConfig!A:C,3,FALSE)&IF(O28="","",CHAR(10)&"-"&VLOOKUP(O28,EventConditionConfig!A:C,3,FALSE))) -> 
A29: 1030 | B29: 221 | H29: 221 | I29: 发现一个血迹斑斑的背包，好像刚刚发生了战斗，我翻翻背包... | P29: =IF(N29="","","-"&VLOOKUP(N29,EventConditionConfig!A:C,3,FALSE)&IF(O29="","",CHAR(10)&"-"&VLOOKUP(O29,EventConditionConfig!A:C,3,FALSE))) ->  | Q29: 3 | Y29: 1002 | Z29: 10
P30: =IF(N30="","","-"&VLOOKUP(N30,EventConditionConfig!A:C,3,FALSE)&IF(O30="","",CHAR(10)&"-"&VLOOKUP(O30,EventConditionConfig!A:C,3,FALSE))) -> 
A31: 1040 | B31: 222 | H31: 222 | I31: 啥也没有....除了钱 | P31: =IF(N31="","","-"&VLOOKUP(N31,EventConditionConfig!A:C,3,FALSE)&IF(O31="","",CHAR(10)&"-"&VLOOKUP(O31,EventConditionConfig!A:C,3,FALSE))) ->  | Q31: 3 | Y31: 1002 | Z31: 10
P32: =IF(N32="","","-"&VLOOKUP(N32,EventConditionConfig!A:C,3,FALSE)&IF(O32="","",CHAR(10)&"-"&VLOOKUP(O32,EventConditionConfig!A:C,3,FALSE))) -> 
A33: 1050 | B33: 223 | H33: 223 | I33: 两夫妻在吵架，似乎为了一件大事.. | P33: =IF(N33="","","-"&VLOOKUP(N33,EventConditionConfig!A:C,3,FALSE)&IF(O33="","",CHAR(10)&"-"&VLOOKUP(O33,EventConditionConfig!A:C,3,FALSE))) ->  | Q33: 3 | Y33: 1002;1001 | Z33: 10;20
P34: =IF(N34="","","-"&VLOOKUP(N34,EventConditionConfig!A:C,3,FALSE)&IF(O34="","",CHAR(10)&"-"&VLOOKUP(O34,EventConditionConfig!A:C,3,FALSE))) -> 
A35: 1060 | B35: 224 | H35: 224 | I35: 没有任何发现，但感觉空气很好....下次有空再来看看 | P35: =IF(N35="","","-"&VLOOKUP(N35,EventConditionConfig!A:C,3,FALSE)&IF(O35="","",CHAR(10)&"-"&VLOOKUP(O35,EventConditionConfig!A:C,3,FALSE))) -> 
P36: =IF(N36="","","-"&VLOOKUP(N36,EventConditionConfig!A:C,3,FALSE)&IF(O36="","",CHAR(10)&"-"&VLOOKUP(O36,EventConditionConfig!A:C,3,FALSE))) -> 
P37: =IF(N37="","","-"&VLOOKUP(N37,EventConditionConfig!A:C,3,FALSE)&IF(O37="","",CHAR(10)&"-"&VLOOKUP(O37,EventConditionConfig!A:C,3,FALSE))) -> 
P38: =IF(N38="","","-"&VLOOKUP(N38,EventConditionConfig!A:C,3,FALSE)&IF(O38="","",CHAR(10)&"-"&VLOOKUP(O38,EventConditionConfig!A:C,3,FALSE))) -> 
A39: =K39*100+L39 -> 1101 | H39: 208 | I39: 事件10001：一只[怪物1]袭击了你，准备迎战 | K39: 11 | L39: =IF(K39=K38,L38+1,1) -> 1 | P39: =IF(N39="","","-"&VLOOKUP(N39,EventConditionConfig!A:C,3,FALSE)&IF(O39="","",CHAR(10)&"-"&VLOOKUP(O39,EventConditionConfig!A:C,3,FALSE))) ->  | Q39: 2 | R39: 100001 | AA39: 2 | AB39: 1102;100
A40: =K40*100+L40 -> 1102 | H40: 209 | I40: 你击败了怪物，并从它身上吸取了一些修为 | K40: 11 | L40: =IF(K40=K39,L39+1,1) -> 2 | P40: =IF(N40="","","-"&VLOOKUP(N40,EventConditionConfig!A:C,3,FALSE)&IF(O40="","",CHAR(10)&"-"&VLOOKUP(O40,EventConditionConfig!A:C,3,FALSE))) ->  | Q40: 3 | Y40: 1003 | Z40: 3000
P41: =IF(N41="","","-"&VLOOKUP(N41,EventConditionConfig!A:C,3,FALSE)&IF(O41="","",CHAR(10)&"-"&VLOOKUP(O41,EventConditionConfig!A:C,3,FALSE))) -> 
A42: =K42*100+L42 -> 1201 | H42: 210 | I42: 你偶遇一处仙气四溢无人生活的洞穴 | K42: 12 | L42: =IF(K42=K41,L41+1,1) -> 1 | P42: =IF(N42="","","-"&VLOOKUP(N42,EventConditionConfig!A:C,3,FALSE)&IF(O42="","",CHAR(10)&"-"&VLOOKUP(O42,EventConditionConfig!A:C,3,FALSE))) ->  | AA42: 1 | AB42: =A43 -> 1202
A43: =K43*100+L43 -> 1202 | H43: 211 | I43: 不知哪位高人在洞穴内壁留下绝世秘籍 | K43: 12 | L43: =IF(K43=K42,L42+1,1) -> 2 | P43: =IF(N43="","","-"&VLOOKUP(N43,EventConditionConfig!A:C,3,FALSE)&IF(O43="","",CHAR(10)&"-"&VLOOKUP(O43,EventConditionConfig!A:C,3,FALSE))) ->  | AA43: 1 | AB43: =A44 -> 1203
A44: =K44*100+L44 -> 1203 | H44: 1903 | I44: 你仔细研读后，功法得到精进 | K44: 12 | L44: =IF(K44=K43,L43+1,1) -> 3 | P44: =IF(N44="","","-"&VLOOKUP(N44,EventConditionConfig!A:C,3,FALSE)&IF(O44="","",CHAR(10)&"-"&VLOOKUP(O44,EventConditionConfig!A:C,3,FALSE))) ->  | Q44: 3 | Y44: 1005 | Z44: 500
P45: =IF(N45="","","-"&VLOOKUP(N45,EventConditionConfig!A:C,3,FALSE)&IF(O45="","",CHAR(10)&"-"&VLOOKUP(O45,EventConditionConfig!A:C,3,FALSE))) -> 
A46: =K46*100+L46 -> 1301 | H46: 212 | I46: 你在飞行途中不慎滑倒 | K46: 13 | L46: =IF(K46=K45,L45+1,1) -> 1 | P46: =IF(N46="","","-"&VLOOKUP(N46,EventConditionConfig!A:C,3,FALSE)&IF(O46="","",CHAR(10)&"-"&VLOOKUP(O46,EventConditionConfig!A:C,3,FALSE))) ->  | AA46: 1 | AB46: =A47 -> 1302
A47: =K47*100+L47 -> 1302 | H47: 213 | I47: 原来是脚下有一块圆润的微微发光的石头 | K47: 13 | L47: =IF(K47=K46,L46+1,1) -> 2 | P47: =IF(N47="","","-"&VLOOKUP(N47,EventConditionConfig!A:C,3,FALSE)&IF(O47="","",CHAR(10)&"-"&VLOOKUP(O47,EventConditionConfig!A:C,3,FALSE))) ->  | AA47: 1 | AB47: =A48 -> 1303
A48: 1303 | H48: 214 | I48: 你拾起来一看，原来它蕴含了丰富的法宝灵韵 | K48: 13 | L48: 3 | P48: =IF(N48="","","-"&VLOOKUP(N48,EventConditionConfig!A:C,3,FALSE)&IF(O48="","",CHAR(10)&"-"&VLOOKUP(O48,EventConditionConfig!A:C,3,FALSE))) ->  | AA48: 1 | AB48: =A49 -> 1304
A49: 1304 | H49: 215 | I49: 原本郁闷的心情，突然变的好了起来，哈哈~ | K49: 13 | L49: 4 | P49: =IF(N49="","","-"&VLOOKUP(N49,EventConditionConfig!A:C,3,FALSE)&IF(O49="","",CHAR(10)&"-"&VLOOKUP(O49,EventConditionConfig!A:C,3,FALSE))) ->  | Q49: 3 | Y49: 1006 | Z49: 500
P50: =IF(N50="","","-"&VLOOKUP(N50,EventConditionConfig!A:C,3,FALSE)&IF(O50="","",CHAR(10)&"-"&VLOOKUP(O50,EventConditionConfig!A:C,3,FALSE))) -> 
A51: 1401 | H51: 1901 | I51: 事件10005：一只[怪物2]袭击了你，准备迎战 | K51: 14 | L51: =IF(K51=K50,L50+1,1) -> 1 | P51: =IF(N51="","","-"&VLOOKUP(N51,EventConditionConfig!A:C,3,FALSE)&IF(O51="","",CHAR(10)&"-"&VLOOKUP(O51,EventConditionConfig!A:C,3,FALSE))) ->  | Q51: 2 | R51: 100002 | AA51: 2 | AB51: 1402;100
A52: 1402 | H52: 209 | I52: 你击败了怪物，并从它身上吸取了一些修为 | K52: 14 | L52: =IF(K52=K51,L51+1,1) -> 2 | P52: =IF(N52="","","-"&VLOOKUP(N52,EventConditionConfig!A:C,3,FALSE)&IF(O52="","",CHAR(10)&"-"&VLOOKUP(O52,EventConditionConfig!A:C,3,FALSE))) ->  | Q52: 3 | Y52: 1003 | Z52: 3000
P53: =IF(N53="","","-"&VLOOKUP(N53,EventConditionConfig!A:C,3,FALSE)&IF(O53="","",CHAR(10)&"-"&VLOOKUP(O53,EventConditionConfig!A:C,3,FALSE))) -> 
A54: 1501 | H54: 1902 | I54: 事件10006：一只[怪物3]袭击了你，准备迎战 | K54: 15 | L54: =IF(K54=K53,L53+1,1) -> 1 | P54: =IF(N54="","","-"&VLOOKUP(N54,EventConditionConfig!A:C,3,FALSE)&IF(O54="","",CHAR(10)&"-"&VLOOKUP(O54,EventConditionConfig!A:C,3,FALSE))) ->  | Q54: 2 | R54: 100003 | AA54: 2 | AB54: 1502;100
A55: 1502 | H55: 209 | I55: 你击败了怪物，并从它身上吸取了一些修为 | K55: 15 | L55: =IF(K55=K54,L54+1,1) -> 2 | P55: =IF(N55="","","-"&VLOOKUP(N55,EventConditionConfig!A:C,3,FALSE)&IF(O55="","",CHAR(10)&"-"&VLOOKUP(O55,EventConditionConfig!A:C,3,FALSE))) ->  | Q55: 3 | Y55: 1003 | Z55: 3000
P56: =IF(N56="","","-"&VLOOKUP(N56,EventConditionConfig!A:C,3,FALSE)&IF(O56="","",CHAR(10)&"-"&VLOOKUP(O56,EventConditionConfig!A:C,3,FALSE))) -> 
A57: 9003 | B57: 2036 | H57: 2036 | I57: 你在闭关修炼时，感受到一股凌厉的剑意波动。深入探查，发现一名白衣剑修“清霜”盘坐于谷中，周围剑气环绕，正与一柄散发不祥气息的灵剑对峙。她似在参悟剑诀，却灵气不足，剑灵桀骜。 | P57: =IF(N57="","","-"&VLOOKUP(N57,EventConditionConfig!A:C,3,FALSE)&IF(O57="","",CHAR(10)&"-"&VLOOKUP(O57,EventConditionConfig!A:C,3,FALSE))) ->  | Q57: 1 | R57: 9004;9006 | S57: 2041;2042
A58: 9004 | B58: 2037 | H58: 2037 | I58: 你上前以剑意对抗剑灵 | P58: =IF(N58="","","-"&VLOOKUP(N58,EventConditionConfig!A:C,3,FALSE)&IF(O58="","",CHAR(10)&"-"&VLOOKUP(O58,EventConditionConfig!A:C,3,FALSE))) ->  | Q58: 2 | R58: 100001 | AA58: 2 | AB58: 9005;100
A59: 9005 | B59: 2038 | H59: 2038 | I59: 成功压制剑灵，清霜赠你“霜华剑符”并结下道友之谊 | P59: =IF(N59="","","-"&VLOOKUP(N59,EventConditionConfig!A:C,3,FALSE)&IF(O59="","",CHAR(10)&"-"&VLOOKUP(O59,EventConditionConfig!A:C,3,FALSE))) -> 
A60: 9006 | B60: 2039 | H60: 2039 | I60: 你察觉谷中灵气匮乏，清霜剑意凝滞。神识探查得知，附近秘境可采集“玄冰花” | P60: =IF(N60="","","-"&VLOOKUP(N60,EventConditionConfig!A:C,3,FALSE)&IF(O60="","",CHAR(10)&"-"&VLOOKUP(O60,EventConditionConfig!A:C,3,FALSE))) -> 
A61: 9007 | B61: 2040 | H61: 2040 | I61: 献上玄冰花，清霜炼化灵气突破瓶颈，赠你“玄霜剑意” | P61: =IF(N61="","","-"&VLOOKUP(N61,EventConditionConfig!A:C,3,FALSE)&IF(O61="","",CHAR(10)&"-"&VLOOKUP(O61,EventConditionConfig!A:C,3,FALSE))) ->  | Q61: 4 | AA61: 1 | AB61: 9007
A62: 9008 | P62: =IF(N62="","","-"&VLOOKUP(N62,EventConditionConfig!A:C,3,FALSE)&IF(O62="","",CHAR(10)&"-"&VLOOKUP(O62,EventConditionConfig!A:C,3,FALSE))) ->  | Q62: 3 | Y62: 1001 | Z62: 999
P63: =IF(N63="","","-"&VLOOKUP(N63,EventConditionConfig!A:C,3,FALSE)&IF(O63="","",CHAR(10)&"-"&VLOOKUP(O63,EventConditionConfig!A:C,3,FALSE))) -> 
P64: =IF(N64="","","-"&VLOOKUP(N64,EventConditionConfig!A:C,3,FALSE)&IF(O64="","",CHAR(10)&"-"&VLOOKUP(O64,EventConditionConfig!A:C,3,FALSE))) -> 
P65: =IF(N65="","","-"&VLOOKUP(N65,EventConditionConfig!A:C,3,FALSE)&IF(O65="","",CHAR(10)&"-"&VLOOKUP(O65,EventConditionConfig!A:C,3,FALSE))) -> 
A66: 9025 | B66: 2074 | D66: 2073 | E66: 和惠子交谈 | H66: 2074 | I66: 惠子种的葫芦没用，他非常生气，需要打败魔休 | P66: =IF(N66="","","-"&VLOOKUP(N66,EventConditionConfig!A:C,3,FALSE)&IF(O66="","",CHAR(10)&"-"&VLOOKUP(O66,EventConditionConfig!A:C,3,FALSE))) ->  | Q66: 1 | R66: 9026 | S66: 2075
A67: 9026 | I67: 选择后接新的事件 | P67: =IF(N67="","","-"&VLOOKUP(N67,EventConditionConfig!A:C,3,FALSE)&IF(O67="","",CHAR(10)&"-"&VLOOKUP(O67,EventConditionConfig!A:C,3,FALSE))) ->  | U67: 接受任务 | AA67: 3 | AB67: 9014
P68: =IF(N68="","","-"&VLOOKUP(N68,EventConditionConfig!A:C,3,FALSE)&IF(O68="","",CHAR(10)&"-"&VLOOKUP(O68,EventConditionConfig!A:C,3,FALSE))) -> 
P69: =IF(N69="","","-"&VLOOKUP(N69,EventConditionConfig!A:C,3,FALSE)&IF(O69="","",CHAR(10)&"-"&VLOOKUP(O69,EventConditionConfig!A:C,3,FALSE))) -> 
A70: 9014 | B70: 2070 | E70: 击杀魔休 | M70: 3 | N70: 3 | P70: =IF(N70="","","-"&VLOOKUP(N70,EventConditionConfig!A:C,3,FALSE)&IF(O70="","",CHAR(10)&"-"&VLOOKUP(O70,EventConditionConfig!A:C,3,FALSE))) -> -击杀魔休
M71: =_xlfn.TEXTJOIN(";",1,N71:O71) ->  | P71: =IF(N71="","","-"&VLOOKUP(N71,EventConditionConfig!A:C,3,FALSE)&IF(O71="","",CHAR(10)&"-"&VLOOKUP(O71,EventConditionConfig!A:C,3,FALSE))) -> 
P72: =IF(N72="","","-"&VLOOKUP(N72,EventConditionConfig!A:C,3,FALSE)&IF(O72="","",CHAR(10)&"-"&VLOOKUP(O72,EventConditionConfig!A:C,3,FALSE))) -> 
A73: 9031 | B73: 2076 | C73: 出现Boss魔修 | D73: 2077 | E73: 打败魔修 | P73: =IF(N73="","","-"&VLOOKUP(N73,EventConditionConfig!A:C,3,FALSE)&IF(O73="","",CHAR(10)&"-"&VLOOKUP(O73,EventConditionConfig!A:C,3,FALSE))) ->  | Q73: 2 | R73: 100001
P74: =IF(N74="","","-"&VLOOKUP(N74,EventConditionConfig!A:C,3,FALSE)&IF(O74="","",CHAR(10)&"-"&VLOOKUP(O74,EventConditionConfig!A:C,3,FALSE))) -> 
A75: =K75*100+L75 -> 1000101 | B75: 2086 | C75: 使用风铃唤醒还未泯灭的神识 | H75: 2083 | I75: 北冥有鱼，其名为鲲…… | J75: 2 | K75: 10001 | L75: =IF(K75=K74,L74+1,1) -> 1 | P75: =IF(N75="","","-"&VLOOKUP(N75,EventConditionConfig!A:C,3,FALSE)&IF(O75="","",CHAR(10)&"-"&VLOOKUP(O75,EventConditionConfig!A:C,3,FALSE))) ->  | AA75: =IF(A75="","",IF(Q75=1,"",IF(A76="",3,1))) -> 1 | AB75: =IF(AA75=1,A76,IF(AA75=3,LEFT(A75,5)+1,"")) -> 1000102
A76: =K76*100+L76 -> 1000102 | B76: 2086 | C76: 使用风铃唤醒还未泯灭的神识 | H76: 2084 | I76: 不过北海遥远，何时能寻得鲲鹏的踪迹。 | J76: 2 | K76: 10001 | L76: =IF(K76=K75,L75+1,1) -> 2 | P76: =IF(N76="","","-"&VLOOKUP(N76,EventConditionConfig!A:C,3,FALSE)&IF(O76="","",CHAR(10)&"-"&VLOOKUP(O76,EventConditionConfig!A:C,3,FALSE))) ->  | AA76: =IF(A76="","",IF(Q76=1,"",IF(A77="",3,1))) -> 1 | AB76: =IF(AA76=1,A77,IF(AA76=3,LEFT(A76,5)+1,"")) -> 1000103
A77: =K77*100+L77 -> 1000103 | B77: 2086 | C77: 使用风铃唤醒还未泯灭的神识 | H77: 2085 | I77: 好在我的神识尚在，可探天地，再加上刚刚的风铃，或许能寻得前路线索。 | J77: 2 | K77: 10001 | L77: 3 | P77: =IF(N77="","","-"&VLOOKUP(N77,EventConditionConfig!A:C,3,FALSE)&IF(O77="","",CHAR(10)&"-"&VLOOKUP(O77,EventConditionConfig!A:C,3,FALSE))) ->  | AA77: 1 | AB77: 1000104
A78: =K78*100+L78 -> 1000104 | B78: 2086 | C78: 使用风铃唤醒还未泯灭的神识 | K78: 10001 | L78: 4 | M78: 5 | N78: 5 | P78: =IF(N78="","","-"&VLOOKUP(N78,EventConditionConfig!A:C,3,FALSE)&IF(O78="","",CHAR(10)&"-"&VLOOKUP(O78,EventConditionConfig!A:C,3,FALSE))) -> -使用神识 | AA78: 3 | AB78: 10002
P79: =IF(N79="","","-"&VLOOKUP(N79,EventConditionConfig!A:C,3,FALSE)&IF(O79="","",CHAR(10)&"-"&VLOOKUP(O79,EventConditionConfig!A:C,3,FALSE))) -> 
A80: =K80*100+L80 -> 1000201 | B80: 2091 | C80: 前往妖兽盘踞的地方 | H80: 2092 | I80: 神识发现有一条古径，隐于云山之间，不过似乎有妖兽盘踞。 | J80: 3 | K80: 10002 | L80: 1 | P80: =IF(N80="","","-"&VLOOKUP(N80,EventConditionConfig!A:C,3,FALSE)&IF(O80="","",CHAR(10)&"-"&VLOOKUP(O80,EventConditionConfig!A:C,3,FALSE))) ->  | AA80: 1 | AB80: =IF(AA80=1,A81,IF(AA80=3,LEFT(A80,5)+1,"")) -> 1000202
A81: =K81*100+L81 -> 1000202 | B81: 2091 | C81: 前往妖兽盘踞的地方 | H81: 2093 | I81: 没其他办法了，过去看看吧。 | J81: 3 | K81: 10002 | L81: 2 | P81: =IF(N81="","","-"&VLOOKUP(N81,EventConditionConfig!A:C,3,FALSE)&IF(O81="","",CHAR(10)&"-"&VLOOKUP(O81,EventConditionConfig!A:C,3,FALSE))) ->  | AA81: 1 | AB81: 1000203
A82: =K82*100+L82 -> 1000203 | B82: 2091 | C82: 前往妖兽盘踞的地方 | D82: 2094 | E82: 继续飞行一段时间 | K82: 10002 | L82: 3 | P82: =IF(N82="","","-"&VLOOKUP(N82,EventConditionConfig!A:C,3,FALSE)&IF(O82="","",CHAR(10)&"-"&VLOOKUP(O82,EventConditionConfig!A:C,3,FALSE))) ->  | AA82: 3 | AB82: 10003
P83: =IF(N83="","","-"&VLOOKUP(N83,EventConditionConfig!A:C,3,FALSE)&IF(O83="","",CHAR(10)&"-"&VLOOKUP(O83,EventConditionConfig!A:C,3,FALSE))) -> 
A84: 1000301 | B84: 2095 | C84: 蜩鸟和小麻雀对你的到来很好奇 | G84: =IF(F84="","",VLOOKUP(F84,EventNPC!A:E,5,FALSE)) ->  | H84: 2096 | I84: 应该就是这里了，似乎有古老的阵法挡住了去路 | K84: 10003 | L84: 1 | P84: =IF(N84="","","-"&VLOOKUP(N84,EventConditionConfig!A:C,3,FALSE)&IF(O84="","",CHAR(10)&"-"&VLOOKUP(O84,EventConditionConfig!A:C,3,FALSE))) ->  | AA84: 1 | AB84: 1000302
A85: =K85*100+L85 -> 1000302 | B85: 2095 | C85: 蜩鸟和小麻雀对你的到来很好奇 | G85: =IF(F85="","",VLOOKUP(F85,EventNPC!A:E,5,FALSE)) ->  | H85: 2097 | I85: （结界门前，三只小鸟飞来，落在一旁古松上） | K85: 10003 | L85: 2 | P85: =IF(N85="","","-"&VLOOKUP(N85,EventConditionConfig!A:C,3,FALSE)&IF(O85="","",CHAR(10)&"-"&VLOOKUP(O85,EventConditionConfig!A:C,3,FALSE))) ->  | AA85: 1 | AB85: 1000303
A86: =K86*100+L86 -> 1000303 | B86: 2095 | C86: 蜩鸟和小麻雀对你的到来很好奇 | F86: 101 | G86: =IF(F86="","",VLOOKUP(F86,EventNPC!A:E,5,FALSE)) -> 蜩鸟 | H86: 2098 | I86: （拍翅）：“咦？又是妄图穿行北海之人？” | K86: 10003 | L86: =IF(K86=K85,L85+1,1) -> 3 | P86: =IF(N86="","","-"&VLOOKUP(N86,EventConditionConfig!A:C,3,FALSE)&IF(O86="","",CHAR(10)&"-"&VLOOKUP(O86,EventConditionConfig!A:C,3,FALSE))) ->  | Q86: 1 | R86: =A87 -> 1000304 | S86: =_xlfn.TEXTJOIN(";",1,T86,V86) -> 2099 | T86: 2099 | U86: 我在寻找鲲鹏，你们知道它在哪里吗？
A87: =K87*100+L87 -> 1000304 | B87: 2095 | C87: 蜩鸟和小麻雀对你的到来很好奇 | F87: 102 | G87: =IF(F87="","",VLOOKUP(F87,EventNPC!A:E,5,FALSE)) -> 小麻雀 | H87: 2100 | I87: （扑棱翅膀）是想要从北海飞往南海的超级大鸟吧？ | K87: 10003 | L87: =IF(K87=K86,L86+1,1) -> 4 | P87: =IF(N87="","","-"&VLOOKUP(N87,EventConditionConfig!A:C,3,FALSE)&IF(O87="","",CHAR(10)&"-"&VLOOKUP(O87,EventConditionConfig!A:C,3,FALSE))) ->  | AA87: 1 | AB87: 1000305
A88: =K88*100+L88 -> 1000305 | B88: 2095 | C88: 蜩鸟和小麻雀对你的到来很好奇 | F88: 102 | G88: =IF(F88="","",VLOOKUP(F88,EventNPC!A:E,5,FALSE)) -> 小麻雀 | H88: 2101 | I88: 我就想不明白，她为何要飞如此之远，太奇怪啦！ | K88: 10003 | L88: =IF(K88=K87,L87+1,1) -> 5 | P88: =IF(N88="","","-"&VLOOKUP(N88,EventConditionConfig!A:C,3,FALSE)&IF(O88="","",CHAR(10)&"-"&VLOOKUP(O88,EventConditionConfig!A:C,3,FALSE))) ->  | Q88: 1 | R88: =A89 -> 1000306 | S88: 2102 | T88: 2102 | U88: 鲲鹏是在追求心中的目标吧。
A89: =K89*100+L89 -> 1000306 | B89: 2095 | C89: 蜩鸟和小麻雀对你的到来很好奇 | F89: 102 | G89: =IF(F89="","",VLOOKUP(F89,EventNPC!A:E,5,FALSE)) -> 小麻雀 | H89: 2103 | I89: （偏头想了想）目标？我天天在这里上蹿下跳，在附近树林飞来飞去，就已经很幸福啦。 | K89: 10003 | L89: =IF(K89=K88,L88+1,1) -> 6 | P89: =IF(N89="","","-"&VLOOKUP(N89,EventConditionConfig!A:C,3,FALSE)&IF(O89="","",CHAR(10)&"-"&VLOOKUP(O89,EventConditionConfig!A:C,3,FALSE))) ->  | AA89: 1 | AB89: 1000307
A90: =K90*100+L90 -> 1000307 | B90: 2095 | C90: 蜩鸟和小麻雀对你的到来很好奇 | F90: 102 | G90: =IF(F90="","",VLOOKUP(F90,EventNPC!A:E,5,FALSE)) -> 小麻雀 | H90: 2104 | I90: 就那大傻鸟，非要飞那么远，又笨又蠢...真没意思。 | K90: 10003 | L90: =IF(K90=K89,L89+1,1) -> 7 | P90: =IF(N90="","","-"&VLOOKUP(N90,EventConditionConfig!A:C,3,FALSE)&IF(O90="","",CHAR(10)&"-"&VLOOKUP(O90,EventConditionConfig!A:C,3,FALSE))) ->  | Q90: 1 | R90: =A91 -> 1000308 | S90: 2105;2106 | T90: 2105 | U90: 你说得也有一定道理… | V90: 2106 | W90: 你懂什么..这大鹏鸟可比你更有志向多了。
A91: =K91*100+L91 -> 1000308 | B91: 2095 | C91: 蜩鸟和小麻雀对你的到来很好奇 | F91: 101 | G91: =IF(F91="","",VLOOKUP(F91,EventNPC!A:E,5,FALSE)) -> 蜩鸟 | H91: 2107 | I91: （翻飞一圈）志向有什么用？到头来还不是风停了就落地。 | K91: 10003 | L91: =IF(K91=K90,L90+1,1) -> 8 | P91: =IF(N91="","","-"&VLOOKUP(N91,EventConditionConfig!A:C,3,FALSE)&IF(O91="","",CHAR(10)&"-"&VLOOKUP(O91,EventConditionConfig!A:C,3,FALSE))) ->  | Q91: 1 | R91: =A92 -> 1000309 | S91: 2108 | T91: 2108 | U91: ......
A92: =K92*100+L92 -> 1000309 | B92: 2095 | C92: 蜩鸟和小麻雀对你的到来很好奇 | G92: =IF(F92="","",VLOOKUP(F92,EventNPC!A:E,5,FALSE)) ->  | H92: 2109 | I92: （此时，结界微动，一缕风穿林而过，古径阵法竟有一丝松动） | K92: 10003 | L92: =IF(K92=K91,L91+1,1) -> 9 | P92: =IF(N92="","","-"&VLOOKUP(N92,EventConditionConfig!A:C,3,FALSE)&IF(O92="","",CHAR(10)&"-"&VLOOKUP(O92,EventConditionConfig!A:C,3,FALSE))) ->  | AA92: 3 | AB92: 10004
P93: =IF(N93="","","-"&VLOOKUP(N93,EventConditionConfig!A:C,3,FALSE)&IF(O93="","",CHAR(10)&"-"&VLOOKUP(O93,EventConditionConfig!A:C,3,FALSE))) -> 
A94: =K94*100+L94 -> 1000401 | B94: 2110 | C94: 原来它们就是镇守阵法的结界兽 | D94: 2115 | E94: 击败结界兽 | F94: 101 | G94: =IF(F94="","",VLOOKUP(F94,EventNPC!A:E,5,FALSE)) -> 蜩鸟 | H94: 2111 | I94: 这结界似乎有所反应… | K94: 10004 | L94: =IF(K94=K93,L93+1,1) -> 1 | P94: =IF(N94="","","-"&VLOOKUP(N94,EventConditionConfig!A:C,3,FALSE)&IF(O94="","",CHAR(10)&"-"&VLOOKUP(O94,EventConditionConfig!A:C,3,FALSE))) ->  | Q94: 1 | R94: =A95 -> 1000402 | S94: =_xlfn.TEXTJOIN(";",1,T94,V94) -> 2112 | T94: 2112 | U94: 与你们聊天很有意思，不过今天我是非过去不可，没人能阻止我重返仙途！
A95: =K95*100+L95 -> 1000402 | B95: 2110 | C95: 原来它们就是镇守阵法的结界兽 | D95: 2115 | E95: 击败结界兽 | F95: 102 | G95: =IF(F95="","",VLOOKUP(F95,EventNPC!A:E,5,FALSE)) -> 小麻雀 | H95: 2113 | I95: "小鸟.."现身吧！ | K95: 10004 | L95: =IF(K95=K94,L94+1,1) -> 2 | P95: =IF(N95="","","-"&VLOOKUP(N95,EventConditionConfig!A:C,3,FALSE)&IF(O95="","",CHAR(10)&"-"&VLOOKUP(O95,EventConditionConfig!A:C,3,FALSE))) ->  | S95: =_xlfn.TEXTJOIN(";",1,T95,V95) ->  | AA95: =IF(A95="","",IF(Q95=1,"",IF(A96="",3,1))) -> 1 | AB95: =IF(AA95=1,A96,IF(AA95=3,LEFT(A95,5)+1,"")) -> 1000403
A96: =K96*100+L96 -> 1000403 | B96: 2110 | C96: 原来它们就是镇守阵法的结界兽 | D96: 2115 | E96: 击败结界兽 | F96: 101 | G96: =IF(F96="","",VLOOKUP(F96,EventNPC!A:E,5,FALSE)) -> 蜩鸟 | H96: 2114 | I96: （轻轻飞下来..）又来...来吧来吧.. | K96: 10004 | L96: =IF(K96=K95,L95+1,1) -> 3 | P96: =IF(N96="","","-"&VLOOKUP(N96,EventConditionConfig!A:C,3,FALSE)&IF(O96="","",CHAR(10)&"-"&VLOOKUP(O96,EventConditionConfig!A:C,3,FALSE))) ->  | Q96: 2 | R96: 100001 | S96: =_xlfn.TEXTJOIN(";",1,T96,V96) ->  | AA96: 2 | AB96: 1000404;101
A97: =K97*100+L97 -> 1000404 | B97: 2110 | C97: 原来它们就是镇守阵法的结界兽 | F97: 102 | G97: =IF(F97="","",VLOOKUP(F97,EventNPC!A:E,5,FALSE)) -> 小麻雀 | H97: 2115 | I97: 怎么想过去，就去吧.. | K97: 10004 | L97: =IF(K97=K96,L96+1,1) -> 4 | P97: =IF(N97="","","-"&VLOOKUP(N97,EventConditionConfig!A:C,3,FALSE)&IF(O97="","",CHAR(10)&"-"&VLOOKUP(O97,EventConditionConfig!A:C,3,FALSE))) ->  | S97: =_xlfn.TEXTJOIN(";",1,T97,V97) ->  | AA97: =IF(A97="","",IF(Q97=1,"",IF(A98="",3,1))) -> 3 | AB97: =IF(AA97=1,A98,IF(AA97=3,LEFT(A97,5)+1,"")) -> 10005
P98: =IF(N98="","","-"&VLOOKUP(N98,EventConditionConfig!A:C,3,FALSE)&IF(O98="","",CHAR(10)&"-"&VLOOKUP(O98,EventConditionConfig!A:C,3,FALSE))) -> 
A99: =K99*100+L99 -> 1000501 | B99: 2151 | C99: 初见疯道人 | G99: =IF(F99="","",VLOOKUP(F99,EventNPC!A:E,5,FALSE)) ->  | H99: 2116 | I99: 你穿过古径结界，来到一片被风托起的浮空灵岛群。 | K99: 10005 | L99: =IF(K99=K98,L98+1,1) -> 1 | P99: =IF(N99="","","-"&VLOOKUP(N99,EventConditionConfig!A:C,3,FALSE)&IF(O99="","",CHAR(10)&"-"&VLOOKUP(O99,EventConditionConfig!A:C,3,FALSE))) ->  | S99: =_xlfn.TEXTJOIN(";",1,T99,V99) ->  | AA99: =IF(A99="","",IF(Q99=1,"",IF(A100="",3,1))) -> 1 | AB99: =IF(AA99=1,A100,IF(AA99=3,LEFT(A99,5)+1,"")) -> 1000502
A100: =K100*100+L100 -> 1000502 | B100: 2151 | C100: 初见疯道人 | G100: =IF(F100="","",VLOOKUP(F100,EventNPC!A:E,5,FALSE)) ->  | H100: 2117 | I100: 风势强劲，岛与岛之间缝隙深不见底，无桥无梯。 | K100: 10005 | L100: =IF(K100=K99,L99+1,1) -> 2 | P100: =IF(N100="","","-"&VLOOKUP(N100,EventConditionConfig!A:C,3,FALSE)&IF(O100="","",CHAR(10)&"-"&VLOOKUP(O100,EventConditionConfig!A:C,3,FALSE))) ->  | AA100: =IF(A100="","",IF(Q100=1,"",IF(A101="",3,1))) -> 1 | AB100: =IF(AA100=1,A101,IF(AA100=3,LEFT(A100,5)+1,"")) -> 1000503
A101: =K101*100+L101 -> 1000503 | B101: 2151 | C101: 初见疯道人 | G101: =IF(F101="","",VLOOKUP(F101,EventNPC!A:E,5,FALSE)) ->  | H101: 2118 | I101: 此处盘踞一位神秘道人，常独自站在岛边望风，仿佛等待什么。 | K101: 10005 | L101: =IF(K101=K100,L100+1,1) -> 3 | P101: =IF(N101="","","-"&VLOOKUP(N101,EventConditionConfig!A:C,3,FALSE)&IF(O101="","",CHAR(10)&"-"&VLOOKUP(O101,EventConditionConfig!A:C,3,FALSE))) ->  | AA101: =IF(A101="","",IF(Q101=1,"",IF(A102="",3,1))) -> 1 | AB101: =IF(AA101=1,A102,IF(AA101=3,LEFT(A101,5)+1,"")) -> 1000504
A102: =K102*100+L102 -> 1000504 | B102: 2151 | C102: 初见疯道人 | G102: =IF(F102="","",VLOOKUP(F102,EventNPC!A:E,5,FALSE)) ->  | H102: 2119 | I102: （你尝试御剑，却在风中打转，被吹回原地） | K102: 10005 | L102: =IF(K102=K101,L101+1,1) -> 4 | P102: =IF(N102="","","-"&VLOOKUP(N102,EventConditionConfig!A:C,3,FALSE)&IF(O102="","",CHAR(10)&"-"&VLOOKUP(O102,EventConditionConfig!A:C,3,FALSE))) ->  | Q102: 1 | R102: =A103 -> 1000505 | S102: 2120 | T102: 2120 | U102: 前辈，这里的风太大，我无法飞行，请教如何才能通过？ | AA102: =IF(A102="","",IF(Q102=1,"",IF(A103="",3,1))) ->  | AB102: =IF(AA102=1,A103,IF(AA102=3,LEFT(A102,5)+1,"")) -> 
A103: 1000505 | B103: 2151 | C103: 初见疯道人 | F103: 103 | G103: =IF(F103="","",VLOOKUP(F103,EventNPC!A:E,5,FALSE)) -> 疯道人 | H103: 2121 | I103: ...... | K103: 10005 | L103: 5 | P103: =IF(N103="","","-"&VLOOKUP(N103,EventConditionConfig!A:C,3,FALSE)&IF(O103="","",CHAR(10)&"-"&VLOOKUP(O103,EventConditionConfig!A:C,3,FALSE))) ->  | Q103: 1 | R103: =A104 -> 1000506 | S103: 2122 | T103: 2122 | U103: 前辈，我准备前往北海深处，寻鲲鹏。
A104: 1000506 | B104: 2151 | C104: 初见疯道人 | F104: 103 | G104: =IF(F104="","",VLOOKUP(F104,EventNPC!A:E,5,FALSE)) -> 疯道人 | H104: 2123 | I104: 鲲鹏？……世间竟还有人记得它。 | K104: 10005 | L104: 6 | P104: =IF(N104="","","-"&VLOOKUP(N104,EventConditionConfig!A:C,3,FALSE)&IF(O104="","",CHAR(10)&"-"&VLOOKUP(O104,EventConditionConfig!A:C,3,FALSE))) ->  | AA104: 1 | AB104: 1000507
A105: =K105*100+L105 -> 1000507 | B105: 2151 | C105: 初见疯道人 | F105: 103 | G105: =IF(F105="","",VLOOKUP(F105,EventNPC!A:E,5,FALSE)) -> 疯道人 | H105: 2124 | I105: （说着从手中掏出一个碎片，往空中一震，瞬间风停）过来吧。 | K105: 10005 | L105: =IF(K105=K104,L104+1,1) -> 7 | P105: =IF(N105="","","-"&VLOOKUP(N105,EventConditionConfig!A:C,3,FALSE)&IF(O105="","",CHAR(10)&"-"&VLOOKUP(O105,EventConditionConfig!A:C,3,FALSE))) ->  | AA105: =IF(A105="","",IF(Q105=1,"",IF(A106="",3,1))) -> 1 | AB105: =IF(AA105=1,A106,IF(AA105=3,LEFT(A105,5)+1,"")) -> 1000508
A106: =K106*100+L106 -> 1000508 | B106: 2151 | C106: 初见疯道人 | F106: 103 | G106: =IF(F106="","",VLOOKUP(F106,EventNPC!A:E,5,FALSE)) -> 疯道人 | H106: 2125 | I106: 说吧，为何寻那鲲鹏？ | K106: 10005 | L106: =IF(K106=K105,L105+1,1) -> 8 | P106: =IF(N106="","","-"&VLOOKUP(N106,EventConditionConfig!A:C,3,FALSE)&IF(O106="","",CHAR(10)&"-"&VLOOKUP(O106,EventConditionConfig!A:C,3,FALSE))) ->  | Q106: 1 | R106: =A107 -> 1000509 | S106: 2126;2127 | T106: 2126 | U106: 冲虚真人让我去的 | V106: 2127 | W106: 我只是好奇.. | AA106: =IF(A106="","",IF(Q106=1,"",IF(A107="",3,1))) ->  | AB106: =IF(AA106=1,A107,IF(AA106=3,LEFT(A106,5)+1,"")) -> 
A107: 1000509 | B107: 2151 | C107: 初见疯道人 | F107: 103 | G107: =IF(F107="","",VLOOKUP(F107,EventNPC!A:E,5,FALSE)) -> 疯道人 | H107: 2128 | I107: 你可知鹏飞九万里，需凭借龙卷风，才可达成？ | K107: 10005 | L107: 9 | P107: =IF(N107="","","-"&VLOOKUP(N107,EventConditionConfig!A:C,3,FALSE)&IF(O107="","",CHAR(10)&"-"&VLOOKUP(O107,EventConditionConfig!A:C,3,FALSE))) ->  | Q107: 1 | R107: =A108 -> 1000510 | S107: 2129 | T107: 2129 | U107: 请前辈赐教......
A108: 1000510 | B108: 2151 | C108: 初见疯道人 | F108: 103 | G108: =IF(F108="","",VLOOKUP(F108,EventNPC!A:E,5,FALSE)) -> 疯道人 | H108: 2130 | I108: 看你修为尚浅，跟你说多了也无用。 | K108: 10005 | L108: 10 | P108: =IF(N108="","","-"&VLOOKUP(N108,EventConditionConfig!A:C,3,FALSE)&IF(O108="","",CHAR(10)&"-"&VLOOKUP(O108,EventConditionConfig!A:C,3,FALSE))) ->  | AA108: 1 | AB108: 1000511
A109: =K109*100+L109 -> 1000511 | B109: 2151 | C109: 初见疯道人 | F109: 103 | G109: =IF(F109="","",VLOOKUP(F109,EventNPC!A:E,5,FALSE)) -> 疯道人 | H109: 2131 | I109: 再往前是我师弟的洞府了，他可不好说话。 | K109: 10005 | L109: =IF(K109=K108,L108+1,1) -> 11 | P109: =IF(N109="","","-"&VLOOKUP(N109,EventConditionConfig!A:C,3,FALSE)&IF(O109="","",CHAR(10)&"-"&VLOOKUP(O109,EventConditionConfig!A:C,3,FALSE))) ->  | AA109: =IF(A109="","",IF(Q109=1,"",IF(A110="",3,1))) -> 1 | AB109: =IF(AA109=1,A110,IF(AA109=3,LEFT(A109,5)+1,"")) -> 1000512
A110: =K110*100+L110 -> 1000512 | B110: 2151 | C110: 初见疯道人 | F110: 103 | G110: =IF(F110="","",VLOOKUP(F110,EventNPC!A:E,5,FALSE)) -> 疯道人 | H110: 2132 | I110: 就在我这附近好好修炼吧，至少提升至筑基修为。 | K110: 10005 | L110: =IF(K110=K109,L109+1,1) -> 12 | P110: =IF(N110="","","-"&VLOOKUP(N110,EventConditionConfig!A:C,3,FALSE)&IF(O110="","",CHAR(10)&"-"&VLOOKUP(O110,EventConditionConfig!A:C,3,FALSE))) ->  | Q110: 1 | R110: =A111 -> 1000513 | S110: 2133 | T110: 2133 | U110: 前辈为何如此助我？ | AA110: =IF(A110="","",IF(Q110=1,"",IF(A111="",3,1))) ->  | AB110: =IF(AA110=1,A111,IF(AA110=3,LEFT(A110,5)+1,"")) -> 
A111: 1000513 | B111: 2151 | C111: 初见疯道人 | F111: 103 | G111: =IF(F111="","",VLOOKUP(F111,EventNPC!A:E,5,FALSE)) -> 疯道人 | H111: 2134 | I111: （疯道人望你一眼，没有回答，但丢过来一本功法）修到[筑基-中期]再来找我。 | K111: 10005 | L111: 13 | P111: =IF(N111="","","-"&VLOOKUP(N111,EventConditionConfig!A:C,3,FALSE)&IF(O111="","",CHAR(10)&"-"&VLOOKUP(O111,EventConditionConfig!A:C,3,FALSE))) ->  | AA111: 1 | AB111: 1000514
A112: =K112*100+L112 -> 1000514 | B112: 2151 | C112: 初见疯道人 | G112: =IF(F112="","",VLOOKUP(F112,EventNPC!A:E,5,FALSE)) ->  | K112: 10005 | L112: =IF(K112=K111,L111+1,1) -> 14 | M112: 2 | N112: 2 | P112: =IF(N112="","","-"&VLOOKUP(N112,EventConditionConfig!A:C,3,FALSE)&IF(O112="","",CHAR(10)&"-"&VLOOKUP(O112,EventConditionConfig!A:C,3,FALSE))) -> -达到境界：筑基-中期 | AA112: =IF(A112="","",IF(Q112=1,"",IF(A113="",3,1))) -> 3 | AB112: =IF(AA112=1,A113,IF(AA112=3,LEFT(A112,5)+1,"")) -> 10006
P113: =IF(N113="","","-"&VLOOKUP(N113,EventConditionConfig!A:C,3,FALSE)&IF(O113="","",CHAR(10)&"-"&VLOOKUP(O113,EventConditionConfig!A:C,3,FALSE))) -> 
A114: =K114*100+L114 -> 1000601 | B114: 2152 | C114: 疯道人赠与一半风灵珠 | F114: 103 | G114: =IF(F114="","",VLOOKUP(F114,EventNPC!A:E,5,FALSE)) -> 疯道人 | H114: 2139 | I114: 你已突破筑基前期达到中期，灵力通畅，是时候去会一会我的师弟了。 | K114: 10006 | L114: =IF(K114=K113,L113+1,1) -> 1 | P114: =IF(N114="","","-"&VLOOKUP(N114,EventConditionConfig!A:C,3,FALSE)&IF(O114="","",CHAR(10)&"-"&VLOOKUP(O114,EventConditionConfig!A:C,3,FALSE))) ->  | Q114: 1 | R114: 1000603;1000602 | S114: =_xlfn.TEXTJOIN(";",1,T114,V114) -> 2140;2141 | T114: 2140 | U114: 是的。鲲鹏之行，志在必达。 | V114: 2141 | W114: 看看风的尽头到底有什么。 | AA114: =IF(A114="","",IF(Q114=1,"",IF(A115="",3,1))) ->  | AB114: =IF(AA114=1,A115,IF(AA114=3,LEFT(A114,5)+1,"")) -> 
A115: =K115*100+L115 -> 1000602 | B115: 2152 | C115: 疯道人赠与一半风灵珠 | F115: 103 | G115: =IF(F115="","",VLOOKUP(F115,EventNPC!A:E,5,FALSE)) -> 疯道人 | H115: 2142 | I115: （轻轻一笑）你说风的尽头……我也曾想看。 （他望向远处翻涌的云海） | K115: 10006 | L115: =IF(K115=K114,L114+1,1) -> 2 | P115: =IF(N115="","","-"&VLOOKUP(N115,EventConditionConfig!A:C,3,FALSE)&IF(O115="","",CHAR(10)&"-"&VLOOKUP(O115,EventConditionConfig!A:C,3,FALSE))) ->  | Q115: 1 | R115: =A116 -> 1000603 | S115: 2140 | T115: 2140 | U115: 是的。鲲鹏之行，志在必达。 | AA115: =IF(A115="","",IF(Q115=1,"",IF(A116="",3,1))) ->  | AB115: =IF(AA115=1,A116,IF(AA115=3,LEFT(A115,5)+1,"")) -> 
A116: =K116*100+L116 -> 1000603 | B116: 2152 | C116: 疯道人赠与一半风灵珠 | F116: 103 | G116: =IF(F116="","",VLOOKUP(F116,EventNPC!A:E,5,FALSE)) -> 疯道人 | H116: 2143 | I116: 我和师弟，共守这处风眼多年。我想出去，他却偏要留。 | K116: 10006 | L116: =IF(K116=K115,L115+1,1) -> 3 | P116: =IF(N116="","","-"&VLOOKUP(N116,EventConditionConfig!A:C,3,FALSE)&IF(O116="","",CHAR(10)&"-"&VLOOKUP(O116,EventConditionConfig!A:C,3,FALSE))) ->  | AA116: =IF(A116="","",IF(Q116=1,"",IF(A117="",3,1))) -> 1 | AB116: =IF(AA116=1,A117,IF(AA116=3,LEFT(A116,5)+1,"")) -> 1000604
A117: =K117*100+L117 -> 1000604 | B117: 2152 | C117: 疯道人赠与一半风灵珠 | F117: 103 | G117: =IF(F117="","",VLOOKUP(F117,EventNPC!A:E,5,FALSE)) -> 疯道人 | H117: 2144 | I117: 风灵珠碎成两半，一半在我这里，另一半……在他洞府中。 | K117: 10006 | L117: =IF(K117=K116,L116+1,1) -> 4 | P117: =IF(N117="","","-"&VLOOKUP(N117,EventConditionConfig!A:C,3,FALSE)&IF(O117="","",CHAR(10)&"-"&VLOOKUP(O117,EventConditionConfig!A:C,3,FALSE))) ->  | AA117: =IF(A117="","",IF(Q117=1,"",IF(A118="",3,1))) -> 1 | AB117: =IF(AA117=1,A118,IF(AA117=3,LEFT(A117,5)+1,"")) -> 1000605
A118: =K118*100+L118 -> 1000605 | B118: 2152 | C118: 疯道人赠与一半风灵珠 | F118: 103 | G118: =IF(F118="","",VLOOKUP(F118,EventNPC!A:E,5,FALSE)) -> 疯道人 | H118: 2145 | I118: 你若想见鲲鹏，必须要集齐整个风灵珠。 | K118: 10006 | L118: =IF(K118=K117,L117+1,1) -> 5 | P118: =IF(N118="","","-"&VLOOKUP(N118,EventConditionConfig!A:C,3,FALSE)&IF(O118="","",CHAR(10)&"-"&VLOOKUP(O118,EventConditionConfig!A:C,3,FALSE))) ->  | AA118: =IF(A118="","",IF(Q118=1,"",IF(A119="",3,1))) -> 1 | AB118: =IF(AA118=1,A119,IF(AA118=3,LEFT(A118,5)+1,"")) -> 1000606
A119: =K119*100+L119 -> 1000606 | B119: 2152 | C119: 疯道人赠与一半风灵珠 | F119: 103 | G119: =IF(F119="","",VLOOKUP(F119,EventNPC!A:E,5,FALSE)) -> 疯道人 | H119: 2146 | I119: 我这一半给你，可助你在大风中，来去自如。 | K119: 10006 | L119: =IF(K119=K118,L118+1,1) -> 6 | P119: =IF(N119="","","-"&VLOOKUP(N119,EventConditionConfig!A:C,3,FALSE)&IF(O119="","",CHAR(10)&"-"&VLOOKUP(O119,EventConditionConfig!A:C,3,FALSE))) ->  | AA119: =IF(A119="","",IF(Q119=1,"",IF(A120="",3,1))) -> 3 | AB119: =IF(AA119=1,A120,IF(AA119=3,LEFT(A119,5)+1,"")) -> 10007
P120: =IF(N120="","","-"&VLOOKUP(N120,EventConditionConfig!A:C,3,FALSE)&IF(O120="","",CHAR(10)&"-"&VLOOKUP(O120,EventConditionConfig!A:C,3,FALSE))) -> 
A121: =K121*100+L121 -> 1000701 | B121: 2153 | C121: 没想到痴道人一来就要与你交手 | G121: =IF(F121="","",VLOOKUP(F121,EventNPC!A:E,5,FALSE)) ->  | H121: 2147 | I121: 你获得了疯道人的半颗风灵珠，在狂风中自由飞行，好不自在。 | K121: 10007 | L121: =IF(K121=K120,L120+1,1) -> 1 | P121: =IF(N121="","","-"&VLOOKUP(N121,EventConditionConfig!A:C,3,FALSE)&IF(O121="","",CHAR(10)&"-"&VLOOKUP(O121,EventConditionConfig!A:C,3,FALSE))) ->  | S121: =_xlfn.TEXTJOIN(";",1,T121,V121) ->  | AA121: =IF(A121="","",IF(Q121=1,"",IF(A122="",3,1))) -> 1 | AB121: =IF(AA121=1,A122,IF(AA121=3,LEFT(A121,5)+1,"")) -> 1000702
A122: =K122*100+L122 -> 1000702 | B122: 2153 | C122: 没想到痴道人一来就要与你交手 | G122: =IF(F122="","",VLOOKUP(F122,EventNPC!A:E,5,FALSE)) ->  | H122: 2148 | I122: 这......就是逍遥游吗？ | K122: 10007 | L122: =IF(K122=K121,L121+1,1) -> 2 | P122: =IF(N122="","","-"&VLOOKUP(N122,EventConditionConfig!A:C,3,FALSE)&IF(O122="","",CHAR(10)&"-"&VLOOKUP(O122,EventConditionConfig!A:C,3,FALSE))) ->  | S122: =_xlfn.TEXTJOIN(";",1,T122,V122) ->  | AA122: =IF(A122="","",IF(Q122=1,"",IF(A123="",3,1))) -> 1 | AB122: =IF(AA122=1,A123,IF(AA122=3,LEFT(A122,5)+1,"")) -> 1000703
A123: =K123*100+L123 -> 1000703 | B123: 2153 | C123: 没想到痴道人一来就要与你交手 | F123: 104 | G123: =IF(F123="","",VLOOKUP(F123,EventNPC!A:E,5,FALSE)) -> 痴道人 | H123: 2149 | I123: 你终于来了...... | K123: 10007 | L123: =IF(K123=K122,L122+1,1) -> 3 | P123: =IF(N123="","","-"&VLOOKUP(N123,EventConditionConfig!A:C,3,FALSE)&IF(O123="","",CHAR(10)&"-"&VLOOKUP(O123,EventConditionConfig!A:C,3,FALSE))) ->  | Q123: 1 | R123: =A124 -> 1000704 | S123: =_xlfn.TEXTJOIN(";",1,T123,V123) -> 2150 | T123: 2150 | U123: 你知道我要来？ | AA123: =IF(A123="","",IF(Q123=1,"",IF(A124="",3,1))) ->  | AB123: =IF(AA123=1,A124,IF(AA123=3,LEFT(A123,5)+1,"")) -> 
A124: =K124*100+L124 -> 1000704 | B124: 2153 | C124: 没想到痴道人一来就要与你交手 | F124: 104 | G124: =IF(F124="","",VLOOKUP(F124,EventNPC!A:E,5,FALSE)) -> 痴道人 | H124: 2154 | I124: 多说无益，我早已感应到你身上的半颗风灵珠。必是那疯老头让来的。出手吧！ | K124: 10007 | L124: =IF(K124=K123,L123+1,1) -> 4 | P124: =IF(N124="","","-"&VLOOKUP(N124,EventConditionConfig!A:C,3,FALSE)&IF(O124="","",CHAR(10)&"-"&VLOOKUP(O124,EventConditionConfig!A:C,3,FALSE))) ->  | Q124: 2 | R124: 100004 | S124: =_xlfn.TEXTJOIN(";",1,T124,V124) ->  | AA124: 2 | AB124: 1000705;101
A125: 1000705 | B125: 2153 | C125: 没想到痴道人一来就要与你交手 | F125: 104 | G125: =IF(F125="","",VLOOKUP(F125,EventNPC!A:E,5,FALSE)) -> 痴道人 | H125: 2155 | I125: （被击倒在一边）够了！ | K125: 10007 | L125: 5 | P125: =IF(N125="","","-"&VLOOKUP(N125,EventConditionConfig!A:C,3,FALSE)&IF(O125="","",CHAR(10)&"-"&VLOOKUP(O125,EventConditionConfig!A:C,3,FALSE))) ->  | S125: =_xlfn.TEXTJOIN(";",1,T125,V125) ->  | AA125: =IF(A125="","",IF(Q125=1,"",IF(A126="",3,1))) -> 3 | AB125: =IF(AA125=1,A126,IF(AA125=3,LEFT(A125,5)+1,"")) -> 10008
P126: =IF(N126="","","-"&VLOOKUP(N126,EventConditionConfig!A:C,3,FALSE)&IF(O126="","",CHAR(10)&"-"&VLOOKUP(O126,EventConditionConfig!A:C,3,FALSE))) -> 
A127: =K127*100+L127 -> 1000801 | B127: 2156 | C127: 疯痴相聚 | F127: 104 | G127: =IF(F127="","",VLOOKUP(F127,EventNPC!A:E,5,FALSE)) -> 痴道人 | H127: 2157 | I127: ...... | K127: 10008 | L127: =IF(K127=K126,L126+1,1) -> 1 | P127: =IF(N127="","","-"&VLOOKUP(N127,EventConditionConfig!A:C,3,FALSE)&IF(O127="","",CHAR(10)&"-"&VLOOKUP(O127,EventConditionConfig!A:C,3,FALSE))) ->  | Q127: 1 | R127: =A128 -> 1000802 | S127: =_xlfn.TEXTJOIN(";",1,T127,V127) -> 2158 | T127: 2158 | U127: （你靠近痴道人）你真的想一直留在这里？你师兄说你不肯走。 | AA127: =IF(A127="","",IF(Q127=1,"",IF(A128="",3,1))) ->  | AB127: =IF(AA127=1,A128,IF(AA127=3,LEFT(A127,5)+1,"")) -> 
A128: 1000802 | B128: 2156 | C128: 疯痴相聚 | F128: 104 | G128: =IF(F128="","",VLOOKUP(F128,EventNPC!A:E,5,FALSE)) -> 痴道人 | H128: 2159 | I128: 你修炼的时候，有没有过那种感觉——身边的人都在往前走，只有你还在原地。 | K128: 10008 | L128: 2 | P128: =IF(N128="","","-"&VLOOKUP(N128,EventConditionConfig!A:C,3,FALSE)&IF(O128="","",CHAR(10)&"-"&VLOOKUP(O128,EventConditionConfig!A:C,3,FALSE))) ->  | AA128: 1 | AB128: 1000803
A129: =K129*100+L129 -> 1000803 | B129: 2156 | C129: 疯痴相聚 | F129: 104 | G129: =IF(F129="","",VLOOKUP(F129,EventNPC!A:E,5,FALSE)) -> 痴道人 | H129: 2160 | I129: 我师兄，他悟性极高，一年就能走我三年的路。我不服气，想努力赶上他。 | K129: 10008 | L129: =IF(K129=K128,L128+1,1) -> 3 | P129: =IF(N129="","","-"&VLOOKUP(N129,EventConditionConfig!A:C,3,FALSE)&IF(O129="","",CHAR(10)&"-"&VLOOKUP(O129,EventConditionConfig!A:C,3,FALSE))) ->  | Q129: 1 | R129: =A130 -> 1000804 | S129: 2161 | T129: 2161 | U129: 然后呢？ | AA129: =IF(A129="","",IF(Q129=1,"",IF(A130="",3,1))) ->  | AB129: =IF(AA129=1,A130,IF(AA129=3,LEFT(A129,5)+1,"")) -> 
A130: =K130*100+L130 -> 1000804 | B130: 2156 | C130: 疯痴相聚 | F130: 104 | G130: =IF(F130="","",VLOOKUP(F130,EventNPC!A:E,5,FALSE)) -> 痴道人 | H130: 2162 | I130: 我一直苦心修炼，可人也困在这儿了……越修炼，越困难，修不动了。 | K130: 10008 | L130: =IF(K130=K129,L129+1,1) -> 4 | P130: =IF(N130="","","-"&VLOOKUP(N130,EventConditionConfig!A:C,3,FALSE)&IF(O130="","",CHAR(10)&"-"&VLOOKUP(O130,EventConditionConfig!A:C,3,FALSE))) ->  | AA130: =IF(A130="","",IF(Q130=1,"",IF(A131="",3,1))) -> 1 | AB130: =IF(AA130=1,A131,IF(AA130=3,LEFT(A130,5)+1,"")) -> 1000805
A131: =K131*100+L131 -> 1000805 | B131: 2156 | C131: 疯痴相聚 | G131: =IF(F131="","",VLOOKUP(F131,EventNPC!A:E,5,FALSE)) ->  | H131: 2163 | I131: [此时，疯道人踏风而至，就在几步之外] | K131: 10008 | L131: =IF(K131=K130,L130+1,1) -> 5 | P131: =IF(N131="","","-"&VLOOKUP(N131,EventConditionConfig!A:C,3,FALSE)&IF(O131="","",CHAR(10)&"-"&VLOOKUP(O131,EventConditionConfig!A:C,3,FALSE))) ->  | AA131: =IF(A131="","",IF(Q131=1,"",IF(A132="",3,1))) -> 1 | AB131: =IF(AA131=1,A132,IF(AA131=3,LEFT(A131,5)+1,"")) -> 1000806
A132: =K132*100+L132 -> 1000806 | B132: 2156 | C132: 疯痴相聚 | F132: 103 | G132: =IF(F132="","",VLOOKUP(F132,EventNPC!A:E,5,FALSE)) -> 疯道人 | H132: 2164 | I132: 师弟，你修着修着，就不记得一开始，是为了什么而修行。 | K132: 10008 | L132: =IF(K132=K131,L131+1,1) -> 6 | P132: =IF(N132="","","-"&VLOOKUP(N132,EventConditionConfig!A:C,3,FALSE)&IF(O132="","",CHAR(10)&"-"&VLOOKUP(O132,EventConditionConfig!A:C,3,FALSE))) ->  | AA132: =IF(A132="","",IF(Q132=1,"",IF(A133="",3,1))) -> 1 | AB132: =IF(AA132=1,A133,IF(AA132=3,LEFT(A132,5)+1,"")) -> 1000807
A133: =K133*100+L133 -> 1000807 | B133: 2156 | C133: 疯痴相聚 | F133: 104 | G133: =IF(F133="","",VLOOKUP(F133,EventNPC!A:E,5,FALSE)) -> 痴道人 | H133: 2165 | I133: （抬头）......我，我真的不记得了。 | K133: 10008 | L133: =IF(K133=K132,L132+1,1) -> 7 | P133: =IF(N133="","","-"&VLOOKUP(N133,EventConditionConfig!A:C,3,FALSE)&IF(O133="","",CHAR(10)&"-"&VLOOKUP(O133,EventConditionConfig!A:C,3,FALSE))) ->  | AA133: =IF(A133="","",IF(Q133=1,"",IF(A134="",3,1))) -> 1 | AB133: =IF(AA133=1,A134,IF(AA133=3,LEFT(A133,5)+1,"")) -> 1000808
A134: =K134*100+L134 -> 1000808 | B134: 2156 | C134: 疯痴相聚 | F134: 103 | G134: =IF(F134="","",VLOOKUP(F134,EventNPC!A:E,5,FALSE)) -> 疯道人 | H134: 2166 | I134: 那就放下风灵珠，和我出去走走。 | K134: 10008 | L134: =IF(K134=K133,L133+1,1) -> 8 | P134: =IF(N134="","","-"&VLOOKUP(N134,EventConditionConfig!A:C,3,FALSE)&IF(O134="","",CHAR(10)&"-"&VLOOKUP(O134,EventConditionConfig!A:C,3,FALSE))) ->  | AA134: =IF(A134="","",IF(Q134=1,"",IF(A135="",3,1))) -> 1 | AB134: =IF(AA134=1,A135,IF(AA134=3,LEFT(A134,5)+1,"")) -> 1000809
A135: =K135*100+L135 -> 1000809 | B135: 2156 | C135: 疯痴相聚 | F135: 103 | G135: =IF(F135="","",VLOOKUP(F135,EventNPC!A:E,5,FALSE)) -> 疯道人 | H135: 2167 | I135: [痴道人楞了一下，片刻后轻轻点头] | K135: 10008 | L135: =IF(K135=K134,L134+1,1) -> 9 | M135: =_xlfn.TEXTJOIN(";",1,N135:O135) ->  | P135: =IF(N135="","","-"&VLOOKUP(N135,EventConditionConfig!A:C,3,FALSE)&IF(O135="","",CHAR(10)&"-"&VLOOKUP(O135,EventConditionConfig!A:C,3,FALSE))) ->  | AA135: =IF(A135="","",IF(Q135=1,"",IF(A136="",3,1))) -> 1 | AB135: =IF(AA135=1,A136,IF(AA135=3,LEFT(A135,5)+1,"")) -> 1000810
A136: =K136*100+L136 -> 1000810 | B136: 2156 | C136: 疯痴相聚 | G136: =IF(F136="","",VLOOKUP(F136,EventNPC!A:E,5,FALSE)) ->  | H136: 2168 | I136: [突然..洞府周围灵气汇聚，快速涌入痴道人的身体.] | K136: 10008 | L136: =IF(K136=K135,L135+1,1) -> 10 | P136: =IF(N136="","","-"&VLOOKUP(N136,EventConditionConfig!A:C,3,FALSE)&IF(O136="","",CHAR(10)&"-"&VLOOKUP(O136,EventConditionConfig!A:C,3,FALSE))) ->  | Q136: 1 | R136: =A137 -> 1000811 | S136: 2169 | T136: 2169 | U136: 前辈，为何灵气会动！ | AA136: =IF(A136="","",IF(Q136=1,"",IF(A137="",3,1))) ->  | AB136: =IF(AA136=1,A137,IF(AA136=3,LEFT(A136,5)+1,"")) -> 
A137: =K137*100+L137 -> 1000811 | B137: 2156 | C137: 疯痴相聚 | F137: 103 | G137: =IF(F137="","",VLOOKUP(F137,EventNPC!A:E,5,FALSE)) -> 疯道人 | H137: 2170 | I137: 恭喜师弟，突破心魔。 | K137: 10008 | L137: =IF(K137=K136,L136+1,1) -> 11 | P137: =IF(N137="","","-"&VLOOKUP(N137,EventConditionConfig!A:C,3,FALSE)&IF(O137="","",CHAR(10)&"-"&VLOOKUP(O137,EventConditionConfig!A:C,3,FALSE))) ->  | AA137: =IF(A137="","",IF(Q137=1,"",IF(A138="",3,1))) -> 1 | AB137: =IF(AA137=1,A138,IF(AA137=3,LEFT(A137,5)+1,"")) -> 1000812
A138: =K138*100+L138 -> 1000812 | B138: 2156 | C138: 疯痴相聚 | F138: 104 | G138: =IF(F138="","",VLOOKUP(F138,EventNPC!A:E,5,FALSE)) -> 痴道人 | H138: =MAX(B137,H137,D137,T137,V137)+1 -> 2171 | I138: 多谢师兄！ | K138: 10008 | L138: =IF(K138=K137,L137+1,1) -> 12 | P138: =IF(N138="","","-"&VLOOKUP(N138,EventConditionConfig!A:C,3,FALSE)&IF(O138="","",CHAR(10)&"-"&VLOOKUP(O138,EventConditionConfig!A:C,3,FALSE))) ->  | Q138: 1 | R138: =A139 -> 1000813 | S138: 2172;2173 | T138: =H138+1 -> 2172 | U138: 原来如此… | V138: =T138+1 -> 2173 | W138: 请前辈赐我风灵珠。 | AA138: =IF(A138="","",IF(Q138=1,"",IF(A139="",3,1))) ->  | AB138: =IF(AA138=1,A139,IF(AA138=3,LEFT(A138,5)+1,"")) -> 
A139: =K139*100+L139 -> 1000813 | B139: 2156 | C139: 疯痴相聚 | F139: 104 | G139: =IF(F139="","",VLOOKUP(F139,EventNPC!A:E,5,FALSE)) -> 痴道人 | H139: =MAX(B138,H138,D138,T138,V138)+1 -> 2174 | I139: 小友莫急… (说罢，痴道人将风灵珠的碎片合成了一颗完整的风灵珠) | K139: 10008 | L139: =IF(K139=K138,L138+1,1) -> 13 | P139: =IF(N139="","","-"&VLOOKUP(N139,EventConditionConfig!A:C,3,FALSE)&IF(O139="","",CHAR(10)&"-"&VLOOKUP(O139,EventConditionConfig!A:C,3,FALSE))) ->  | AA139: =IF(A139="","",IF(Q139=1,"",IF(A140="",3,1))) -> 1 | AB139: =IF(AA139=1,A140,IF(AA139=3,LEFT(A139,5)+1,"")) -> 1000814
A140: =K140*100+L140 -> 1000814 | B140: 2156 | C140: 疯痴相聚 | F140: 104 | G140: =IF(F140="","",VLOOKUP(F140,EventNPC!A:E,5,FALSE)) -> 痴道人 | H140: =MAX(B139,H139,D139,T139,V139)+1 -> 2175 | I140: 拿好了，这风啊……来一回，不容易。 | K140: 10008 | L140: =IF(K140=K139,L139+1,1) -> 14 | P140: =IF(N140="","","-"&VLOOKUP(N140,EventConditionConfig!A:C,3,FALSE)&IF(O140="","",CHAR(10)&"-"&VLOOKUP(O140,EventConditionConfig!A:C,3,FALSE))) ->  | AA140: =IF(A140="","",IF(Q140=1,"",IF(A141="",3,1))) -> 3 | AB140: =IF(AA140=1,A141,IF(AA140=3,LEFT(A140,5)+1,"")) -> 10009
P141: =IF(N141="","","-"&VLOOKUP(N141,EventConditionConfig!A:C,3,FALSE)&IF(O141="","",CHAR(10)&"-"&VLOOKUP(O141,EventConditionConfig!A:C,3,FALSE))) -> 
A142: =K142*100+L142 -> 1000901 | B142: =IF(B141="",MAX(V140,T140,H140)+1,B141) -> 2176 | C142: 达到筑基后期 | F142: 100 | G142: =IF(F142="","",VLOOKUP(F142,EventNPC!A:E,5,FALSE)) -> 玩家 | H142: =IF(L142=1,B142+1,MAX(B141,H141,D141,T141,V141)+1) -> 2177 | I142: 完整的风灵珠果然不同凡响，我可以更大的狂风中穿行了。 | K142: 10009 | L142: =IF(K142=K141,L141+1,1) -> 1 | P142: =IF(N142="","","-"&VLOOKUP(N142,EventConditionConfig!A:C,3,FALSE)&IF(O142="","",CHAR(10)&"-"&VLOOKUP(O142,EventConditionConfig!A:C,3,FALSE))) ->  | S142: =_xlfn.TEXTJOIN(";",1,T142,V142) ->  | AA142: =IF(A142="","",IF(Q142=1,"",IF(A143="",3,1))) -> 1 | AB142: =IF(AA142=1,A143,IF(AA142=3,LEFT(A142,5)+1,"")) -> 1000902
A143: =K143*100+L143 -> 1000902 | B143: =IF(B142="",MAX(V141,T141,H141)+1,B142) -> 2176 | C143: 达到筑基后期 | F143: 100 | G143: =IF(F143="","",VLOOKUP(F143,EventNPC!A:E,5,FALSE)) -> 玩家 | H143: =IF(L143=1,B143+1,MAX(B142,H142,D142,T142,V142)+1) -> 2178 | I143: 前方似乎有不少高阶妖兽，我先在此地提升一些修为吧。 | K143: 10009 | L143: =IF(K143=K142,L142+1,1) -> 2 | P143: =IF(N143="","","-"&VLOOKUP(N143,EventConditionConfig!A:C,3,FALSE)&IF(O143="","",CHAR(10)&"-"&VLOOKUP(O143,EventConditionConfig!A:C,3,FALSE))) ->  | S143: =_xlfn.TEXTJOIN(";",1,T143,V143) ->  | AA143: =IF(A143="","",IF(Q143=1,"",IF(A144="",3,1))) -> 1 | AB143: =IF(AA143=1,A144,IF(AA143=3,LEFT(A143,5)+1,"")) -> 1000903
A144: =K144*100+L144 -> 1000903 | B144: =IF(B143="",MAX(V142,T142,H142)+1,B143) -> 2176 | C144: 达到筑基后期 | F144: 100 | G144: =IF(F144="","",VLOOKUP(F144,EventNPC!A:E,5,FALSE)) -> 玩家 | H144: =IF(L144=1,B144+1,MAX(B143,H143,D143,T143,V143)+1) -> 2179 | I144: 终于筑基中期了，继续寻找冲虚提到的“七道心境”吧，不知鲲鹏是否会给我答案。 | K144: 10009 | L144: =IF(K144=K143,L143+1,1) -> 3 | M144: 8 | N144: 8 | P144: =IF(N144="","","-"&VLOOKUP(N144,EventConditionConfig!A:C,3,FALSE)&IF(O144="","",CHAR(10)&"-"&VLOOKUP(O144,EventConditionConfig!A:C,3,FALSE))) -> -达到境界：筑基-后期 | S144: =_xlfn.TEXTJOIN(";",1,T144,V144) ->  | AA144: =IF(A144="","",IF(Q144=1,"",IF(A145="",3,1))) -> 3 | AB144: =IF(AA144=1,A145,IF(AA144=3,LEFT(A144,5)+1,"")) -> 10010
P145: =IF(N145="","","-"&VLOOKUP(N145,EventConditionConfig!A:C,3,FALSE)&IF(O145="","",CHAR(10)&"-"&VLOOKUP(O145,EventConditionConfig!A:C,3,FALSE))) -> 
A146: =K146*100+L146 -> 1001001 | B146: =IF(B145="",MAX(V144,T144,H144)+1,B145) -> 2180 | C146: 妖兽横行 | G146: =IF(F146="","",VLOOKUP(F146,EventNPC!A:E,5,FALSE)) ->  | K146: =IF(K145="",K144+1,K145) -> 10010 | L146: =IF(K146=K145,L145+1,1) -> 1 | M146: 9 | N146: 9 | P146: =IF(N146="","","-"&VLOOKUP(N146,EventConditionConfig!A:C,3,FALSE)&IF(O146="","",CHAR(10)&"-"&VLOOKUP(O146,EventConditionConfig!A:C,3,FALSE))) -> -击杀妖兽 | S146: =_xlfn.TEXTJOIN(";",1,T146,V146) ->  | AA146: =IF(A146="","",IF(Q146=1,"",IF(A147="",3,1))) -> 3 | AB146: =IF(AA146=1,A147,IF(AA146=3,LEFT(A146,5)+1,"")) -> 10011
P147: =IF(N147="","","-"&VLOOKUP(N147,EventConditionConfig!A:C,3,FALSE)&IF(O147="","",CHAR(10)&"-"&VLOOKUP(O147,EventConditionConfig!A:C,3,FALSE))) -> 
A148: =K148*100+L148 -> 1001101 | B148: =IF(B147="",MAX(V146,T146,H146,B146,D146)+1,B147) -> 2181 | C148: 遇见鲲鹏 | G148: =IF(F148="","",VLOOKUP(F148,EventNPC!A:E,5,FALSE)) ->  | H148: =IF(L148=1,B148+1,MAX(B147,H147,D147,T147,V147)+1) -> 2182 | I148: 鲲鹏需要去南海最深处的天池，可缺少龙卷风，没有大风，大鹏无法飞起来 | K148: =IF(K147="",K146+1,K147) -> 10011 | L148: =IF(K148=K147,L147+1,1) -> 1 | P148: =IF(N148="","","-"&VLOOKUP(N148,EventConditionConfig!A:C,3,FALSE)&IF(O148="","",CHAR(10)&"-"&VLOOKUP(O148,EventConditionConfig!A:C,3,FALSE))) ->  | S148: =_xlfn.TEXTJOIN(";",1,T148,V148) ->  | AA148: =IF(A148="","",IF(Q148=1,"",IF(A149="",3,1))) -> 3 | AB148: =IF(AA148=1,A149,IF(AA148=3,LEFT(A148,5)+1,"")) -> 10012
P149: =IF(N149="","","-"&VLOOKUP(N149,EventConditionConfig!A:C,3,FALSE)&IF(O149="","",CHAR(10)&"-"&VLOOKUP(O149,EventConditionConfig!A:C,3,FALSE))) -> 
A150: =K150*100+L150 -> 1001201 | B150: =IF(B149="",MAX(V148,T148,H148,B148,D148)+1,B149) -> 2183 | C150: 尧让天下 | D150: =IF(E150="","",B150+1) -> 2184 | E150: 倾听尧帝的烦恼 | G150: =IF(F150="","",VLOOKUP(F150,EventNPC!A:E,5,FALSE)) ->  | H150: =IF(I150="","",IF(L150=1,MAX(D150,B150)+1,MAX(B149,H149,D149,T149,V149)+1)) -> 2185 | I150: 你踏入帝尧治下的仙域——一片祥和之地，灵气充沛，民众安居，仿佛世外桃源。 | K150: =IF(K149="",K148+1,K149) -> 10012 | L150: =IF(K150=K149,L149+1,1) -> 1 | P150: =IF(N150="","","-"&VLOOKUP(N150,EventConditionConfig!A:C,3,FALSE)&IF(O150="","",CHAR(10)&"-"&VLOOKUP(O150,EventConditionConfig!A:C,3,FALSE))) ->  | S150: =_xlfn.TEXTJOIN(";",1,T150,V150) ->  | AA150: =IF(A150="","",IF(Q150=1,"",IF(A151="",3,1))) -> 1 | AB150: =IF(AA150=1,A151,IF(AA150=3,LEFT(A150,5)+1,"")) -> 1001202
A151: =K151*100+L151 -> 1001202 | B151: 2183 | C151: 尧让天下 | D151: =IF(E151="","",B151+1) -> 2184 | E151: 倾听尧帝的烦恼 | G151: =IF(F151="","",VLOOKUP(F151,EventNPC!A:E,5,FALSE)) ->  | H151: =IF(I151="","",IF(L151=1,MAX(D151,B151)+1,MAX(B150,H150,D150,T150,V150)+1)) -> 2186 | I151: 然而，这位千年帝君，却眉宇间有难掩的忧色。 | K151: 10012 | L151: =IF(K151=K150,L150+1,1) -> 2 | P151: =IF(N151="","","-"&VLOOKUP(N151,EventConditionConfig!A:C,3,FALSE)&IF(O151="","",CHAR(10)&"-"&VLOOKUP(O151,EventConditionConfig!A:C,3,FALSE))) ->  | AA151: =IF(A151="","",IF(Q151=1,"",IF(A152="",3,1))) -> 1 | AB151: =IF(AA151=1,A152,IF(AA151=3,LEFT(A151,5)+1,"")) -> 1001203
A152: =K152*100+L152 -> 1001203 | B152: 2183 | C152: 尧让天下 | D152: 2184 | E152: 倾听尧帝的烦恼 | G152: =IF(F152="","",VLOOKUP(F152,EventNPC!A:E,5,FALSE)) ->  | H152: 2187 | I152: （你根据逍遥铃的指引，找到了尧） | K152: 10012 | L152: =IF(K152=K151,L151+1,1) -> 3 | P152: =IF(N152="","","-"&VLOOKUP(N152,EventConditionConfig!A:C,3,FALSE)&IF(O152="","",CHAR(10)&"-"&VLOOKUP(O152,EventConditionConfig!A:C,3,FALSE))) ->  | Q152: 1 | R152: =A153 -> 1001204 | S152: 2188 | T152: =IF(U152="","",H152+1) -> 2188 | U152: 拜见帝尧，晚辈受冲虚真人的指引，游历到此处。 | AA152: =IF(A152="","",IF(Q152=1,"",IF(A153="",3,1))) ->  | AB152: =IF(AA152=1,A153,IF(AA152=3,LEFT(A152,5)+1,"")) -> 
A153: =K153*100+L153 -> 1001204 | B153: 2183 | C153: 尧让天下 | D153: 2184 | E153: 倾听尧帝的烦恼 | F153: 105 | G153: =IF(F153="","",VLOOKUP(F153,EventNPC!A:E,5,FALSE)) -> 尧帝 | H153: 2189 | I153: （缓缓回头，脸上带着淡淡忧虑）冲虚真人吗？我也许久没见了.. | K153: 10012 | L153: =IF(K153=K152,L152+1,1) -> 4 | P153: =IF(N153="","","-"&VLOOKUP(N153,EventConditionConfig!A:C,3,FALSE)&IF(O153="","",CHAR(10)&"-"&VLOOKUP(O153,EventConditionConfig!A:C,3,FALSE))) ->  | AA153: =IF(A153="","",IF(Q153=1,"",IF(A154="",3,1))) -> 1 | AB153: =IF(AA153=1,A154,IF(AA153=3,LEFT(A153,5)+1,"")) -> 1001205
A154: =K154*100+L154 -> 1001205 | B154: 2183 | C154: 尧让天下 | D154: 2184 | E154: 倾听尧帝的烦恼 | F154: 105 | G154: =IF(F154="","",VLOOKUP(F154,EventNPC!A:E,5,FALSE)) -> 尧帝 | H154: 2190 | I154: (尧帝邀你来到一高处) 小友，你看此处景致如何？ | K154: 10012 | L154: =IF(K154=K153,L153+1,1) -> 5 | P154: =IF(N154="","","-"&VLOOKUP(N154,EventConditionConfig!A:C,3,FALSE)&IF(O154="","",CHAR(10)&"-"&VLOOKUP(O154,EventConditionConfig!A:C,3,FALSE))) ->  | Q154: 1 | R154: =A155 -> 1001206 | S154: 2191;2192 | T154: 2191 | U154: 万象更新，灵气环绕，是修行的福地。 | V154: =IF(W154="","",T154+1) -> 2192 | W154: 国泰民安，仙人治理，世间罕见。 | AA154: =IF(A154="","",IF(Q154=1,"",IF(A155="",3,1))) ->  | AB154: =IF(AA154=1,A155,IF(AA154=3,LEFT(A154,5)+1,"")) -> 
A155: =K155*100+L155 -> 1001206 | B155: 2183 | C155: 尧让天下 | D155: 2184 | E155: 倾听尧帝的烦恼 | F155: 105 | G155: =IF(F155="","",VLOOKUP(F155,EventNPC!A:E,5,FALSE)) -> 尧帝 | H155: 2193 | I155: （叹息）是啊，人人自在，唯我不自在。这些年来，我境界难以寸进，已有百年。 | K155: 10012 | L155: =IF(K155=K154,L154+1,1) -> 6 | P155: =IF(N155="","","-"&VLOOKUP(N155,EventConditionConfig!A:C,3,FALSE)&IF(O155="","",CHAR(10)&"-"&VLOOKUP(O155,EventConditionConfig!A:C,3,FALSE))) ->  | Q155: 1 | R155: =A156 -> 1001207 | S155: 2194 | T155: 2194 | U155: 帝尧何出此言？ | AA155: =IF(A155="","",IF(Q155=1,"",IF(A156="",3,1))) ->  | AB155: =IF(AA155=1,A156,IF(AA155=3,LEFT(A155,5)+1,"")) -> 
A156: =K156*100+L156 -> 1001207 | B156: 2183 | C156: 尧让天下 | D156: 2184 | E156: 倾听尧帝的烦恼 | F156: 105 | G156: =IF(F156="","",VLOOKUP(F156,EventNPC!A:E,5,FALSE)) -> 尧帝 | H156: 2195 | I156: 你等散修，自由自在，来去如风，可曾体会过身负重任的滋味？ | K156: 10012 | L156: =IF(K156=K155,L155+1,1) -> 7 | P156: =IF(N156="","","-"&VLOOKUP(N156,EventConditionConfig!A:C,3,FALSE)&IF(O156="","",CHAR(10)&"-"&VLOOKUP(O156,EventConditionConfig!A:C,3,FALSE))) ->  | Q156: 1 | R156: =A157 -> 1001208 | S156: 2196 | T156: 2196 | U156: 也有重担，却未必如帝尧这样复杂。 | AA156: =IF(A156="","",IF(Q156=1,"",IF(A157="",3,1))) ->  | AB156: =IF(AA156=1,A157,IF(AA156=3,LEFT(A156,5)+1,"")) -> 
A157: =K157*100+L157 -> 1001208 | B157: 2183 | C157: 尧让天下 | D157: 2184 | E157: 倾听尧帝的烦恼 | F157: 105 | G157: =IF(F157="","",VLOOKUP(F157,EventNPC!A:E,5,FALSE)) -> 尧帝 | H157: 2197 | I157: （微微一笑，摇头）天下如画卷，画卷再美，日夜背负，也终是负担。 | K157: 10012 | L157: =IF(K157=K156,L156+1,1) -> 8 | P157: =IF(N157="","","-"&VLOOKUP(N157,EventConditionConfig!A:C,3,FALSE)&IF(O157="","",CHAR(10)&"-"&VLOOKUP(O157,EventConditionConfig!A:C,3,FALSE))) ->  | Q157: 1 | R157: =A158 -> 1001209 | S157: 2198 | T157: 2198 | U157: ...... | AA157: =IF(A157="","",IF(Q157=1,"",IF(A158="",3,1))) ->  | AB157: =IF(AA157=1,A158,IF(AA157=3,LEFT(A157,5)+1,"")) -> 
A158: =K158*100+L158 -> 1001209 | B158: 2183 | C158: 尧让天下 | D158: 2184 | E158: 倾听尧帝的烦恼 | F158: 105 | G158: =IF(F158="","",VLOOKUP(F158,EventNPC!A:E,5,FALSE)) -> 尧帝 | H158: 2199 | I158: （凝望远方云海）深山之中有位贤士，名为许由，素有盛名，我曾多次请他出山，但未成如愿。 | K158: 10012 | L158: =IF(K158=K157,L157+1,1) -> 9 | P158: =IF(N158="","","-"&VLOOKUP(N158,EventConditionConfig!A:C,3,FALSE)&IF(O158="","",CHAR(10)&"-"&VLOOKUP(O158,EventConditionConfig!A:C,3,FALSE))) ->  | AA158: =IF(A158="","",IF(Q158=1,"",IF(A159="",3,1))) -> 1 | AB158: =IF(AA158=1,A159,IF(AA158=3,LEFT(A158,5)+1,"")) -> 1001210
A159: =K159*100+L159 -> 1001210 | B159: 2183 | C159: 尧让天下 | D159: 2184 | E159: 倾听尧帝的烦恼 | F159: 105 | G159: =IF(F159="","",VLOOKUP(F159,EventNPC!A:E,5,FALSE)) -> 尧帝 | H159: 2200 | I159: 我甚至提出让天下于他，他也不为所动。 | K159: 10012 | L159: =IF(K159=K158,L158+1,1) -> 10 | P159: =IF(N159="","","-"&VLOOKUP(N159,EventConditionConfig!A:C,3,FALSE)&IF(O159="","",CHAR(10)&"-"&VLOOKUP(O159,EventConditionConfig!A:C,3,FALSE))) ->  | Q159: 1 | R159: =A160 -> 1001211 | S159: 2201 | T159: 2201 | U159: 世间竟然有此奇人？ | AA159: =IF(A159="","",IF(Q159=1,"",IF(A160="",3,1))) ->  | AB159: =IF(AA159=1,A160,IF(AA159=3,LEFT(A159,5)+1,"")) -> 
A160: =K160*100+L160 -> 1001211 | B160: 2183 | C160: 尧让天下 | D160: 2184 | E160: 倾听尧帝的烦恼 | F160: 105 | G160: =IF(F160="","",VLOOKUP(F160,EventNPC!A:E,5,FALSE)) -> 尧帝 | H160: 2202 | I160: （凝望远方云海）若小友有空，帮我再请许由出山，我定当感谢。 | K160: 10012 | L160: =IF(K160=K159,L159+1,1) -> 11 | P160: =IF(N160="","","-"&VLOOKUP(N160,EventConditionConfig!A:C,3,FALSE)&IF(O160="","",CHAR(10)&"-"&VLOOKUP(O160,EventConditionConfig!A:C,3,FALSE))) ->  | Q160: 1 | R160: =A161 -> 1001212 | S160: 2203 | T160: 2203 | U160: 好的，既然来了，我就走一趟。 | AA160: =IF(A160="","",IF(Q160=1,"",IF(A161="",3,1))) ->  | AB160: =IF(AA160=1,A161,IF(AA160=3,LEFT(A160,5)+1,"")) -> 
A161: =K161*100+L161 -> 1001212 | B161: 2183 | C161: 尧让天下 | D161: 2184 | E161: 倾听尧帝的烦恼 | G161: =IF(F161="","",VLOOKUP(F161,EventNPC!A:E,5,FALSE)) ->  | K161: 10012 | L161: =IF(K161=K160,L160+1,1) -> 12 | P161: =IF(N161="","","-"&VLOOKUP(N161,EventConditionConfig!A:C,3,FALSE)&IF(O161="","",CHAR(10)&"-"&VLOOKUP(O161,EventConditionConfig!A:C,3,FALSE))) ->  | AA161: =IF(A161="","",IF(Q161=1,"",IF(A162="",3,1))) -> 3 | AB161: =IF(AA161=1,A162,IF(AA161=3,LEFT(A161,5)+1,"")) -> 10013
P162: =IF(N162="","","-"&VLOOKUP(N162,EventConditionConfig!A:C,3,FALSE)&IF(O162="","",CHAR(10)&"-"&VLOOKUP(O162,EventConditionConfig!A:C,3,FALSE))) -> 
A163: =K163*100+L163 -> 1001301 | B163: =IF(B162="",MAX(V161,T161,H161,B161,D161,V160,T160,H160)+1,B162) -> 2204 | C163: 访贤许由 | D163: =IF(E163="","",B163+1) -> 2205 | E163: 听一听这位尧帝口中的贤士有何说法 | G163: =IF(F163="","",VLOOKUP(F163,EventNPC!A:E,5,FALSE)) ->  | H163: =IF(I163="","",IF(L163=1,MAX(D163,B163)+1,MAX(B162,H162,D162,T162,V162)+1)) -> 2206 | I163: 你循帝尧所言，御剑前往幽山秘境。此处灵气绵长，古木参天，溪水潺潺。 | K163: =IF(K162="",K161+1,K162) -> 10013 | L163: =IF(K163=K162,L162+1,1) -> 1 | P163: =IF(N163="","","-"&VLOOKUP(N163,EventConditionConfig!A:C,3,FALSE)&IF(O163="","",CHAR(10)&"-"&VLOOKUP(O163,EventConditionConfig!A:C,3,FALSE))) ->  | S163: =_xlfn.TEXTJOIN(";",1,T163,V163) ->  | T163: =IF(U163="","",H163+1) ->  | V163: =IF(W163="","",T163+1) ->  | AA163: =IF(A163="","",IF(Q163=1,"",IF(A164="",3,1))) -> 1 | AB163: =IF(AA163=1,A164,IF(AA163=3,LEFT(A163,5)+1,"")) -> 1001302
A164: =K164*100+L164 -> 1001302 | B164: 2204 | C164: 访贤许由 | D164: =IF(E164="","",B164+1) -> 2205 | E164: 听一听这位尧帝口中的贤士有何说法 | G164: =IF(F164="","",VLOOKUP(F164,EventNPC!A:E,5,FALSE)) ->  | H164: =IF(I164="","",IF(L164=1,MAX(D164,B164)+1,MAX(B163,H163,D163,T163,V163)+1)) -> 2207 | I164: 据说，许由栖身于此，绝迹尘世，已有数百年。 | K164: 10013 | L164: =IF(K164=K163,L163+1,1) -> 2 | P164: =IF(N164="","","-"&VLOOKUP(N164,EventConditionConfig!A:C,3,FALSE)&IF(O164="","",CHAR(10)&"-"&VLOOKUP(O164,EventConditionConfig!A:C,3,FALSE))) ->  | AA164: =IF(A164="","",IF(Q164=1,"",IF(A165="",3,1))) -> 1 | AB164: =IF(AA164=1,A165,IF(AA164=3,LEFT(A164,5)+1,"")) -> 1001303
A165: =K165*100+L165 -> 1001303 | B165: 2204 | C165: 访贤许由 | D165: =IF(E165="","",B165+1) -> 2205 | E165: 听一听这位尧帝口中的贤士有何说法 | G165: =IF(F165="","",VLOOKUP(F165,EventNPC!A:E,5,FALSE)) ->  | H165: =IF(I165="","",IF(L165=1,MAX(D165,B165)+1,MAX(B164,H164,D164,T164,V164)+1)) -> 2208 | I165: 山风徐徐，水声如琴，你踏过青石小径，看见一位白衣道人正倚石观水。 | K165: 10013 | L165: =IF(K165=K164,L164+1,1) -> 3 | P165: =IF(N165="","","-"&VLOOKUP(N165,EventConditionConfig!A:C,3,FALSE)&IF(O165="","",CHAR(10)&"-"&VLOOKUP(O165,EventConditionConfig!A:C,3,FALSE))) ->  | Q165: 1 | R165: =A166 -> 1001304 | S165: 2209 | T165: 2209 | U165: 前辈可是许由？ | AA165: =IF(A165="","",IF(Q165=1,"",IF(A166="",3,1))) ->  | AB165: =IF(AA165=1,A166,IF(AA165=3,LEFT(A165,5)+1,"")) -> 
A166: =K166*100+L166 -> 1001304 | B166: 2204 | C166: 访贤许由 | D166: =IF(E166="","",B166+1) -> 2205 | E166: 听一听这位尧帝口中的贤士有何说法 | F166: 106 | G166: =IF(F166="","",VLOOKUP(F166,EventNPC!A:E,5,FALSE)) -> 许由 | H166: =IF(I166="","",IF(L166=1,MAX(D166,B166)+1,MAX(B165,H165,D165,T165,V165)+1)) -> 2210 | I166: 正是，小友何事？ | K166: 10013 | L166: =IF(K166=K165,L165+1,1) -> 4 | P166: =IF(N166="","","-"&VLOOKUP(N166,EventConditionConfig!A:C,3,FALSE)&IF(O166="","",CHAR(10)&"-"&VLOOKUP(O166,EventConditionConfig!A:C,3,FALSE))) ->  | AA166: =IF(A166="","",IF(Q166=1,"",IF(A167="",3,1))) -> 1 | AB166: =IF(AA166=1,A167,IF(AA166=3,LEFT(A166,5)+1,"")) -> 1001305
A167: =K167*100+L167 -> 1001305 | B167: 2204 | C167: 访贤许由 | D167: =IF(E167="","",B167+1) -> 2205 | E167: 听一听这位尧帝口中的贤士有何说法 | F167: 100 | G167: =IF(F167="","",VLOOKUP(F167,EventNPC!A:E,5,FALSE)) -> 玩家 | H167: =IF(I167="","",IF(L167=1,MAX(D167,B167)+1,MAX(B166,H166,D166,T166,V166)+1)) -> 2211 | I167: 帝尧欲专心修行，求道问玄，又怕耽误世事，特托我前来相请，欲让天下于你。 | K167: 10013 | L167: =IF(K167=K166,L166+1,1) -> 5 | P167: =IF(N167="","","-"&VLOOKUP(N167,EventConditionConfig!A:C,3,FALSE)&IF(O167="","",CHAR(10)&"-"&VLOOKUP(O167,EventConditionConfig!A:C,3,FALSE))) ->  | AA167: =IF(A167="","",IF(Q167=1,"",IF(A168="",3,1))) -> 1 | AB167: =IF(AA167=1,A168,IF(AA167=3,LEFT(A167,5)+1,"")) -> 1001306
A168: =K168*100+L168 -> 1001306 | B168: 2204 | C168: 访贤许由 | D168: =IF(E168="","",B168+1) -> 2205 | E168: 听一听这位尧帝口中的贤士有何说法 | F168: 106 | G168: =IF(F168="","",VLOOKUP(F168,EventNPC!A:E,5,FALSE)) -> 许由 | H168: =IF(I168="","",IF(L168=1,MAX(D168,B168)+1,MAX(B167,H167,D167,T167,V167)+1)) -> 2212 | I168: （静默片刻）昔日帝尧就提过此事，我已辞之。 | K168: 10013 | L168: =IF(K168=K167,L167+1,1) -> 6 | P168: =IF(N168="","","-"&VLOOKUP(N168,EventConditionConfig!A:C,3,FALSE)&IF(O168="","",CHAR(10)&"-"&VLOOKUP(O168,EventConditionConfig!A:C,3,FALSE))) ->  | AA168: =IF(A168="","",IF(Q168=1,"",IF(A169="",3,1))) -> 1 | AB168: =IF(AA168=1,A169,IF(AA168=3,LEFT(A168,5)+1,"")) -> 1001307
A169: =K169*100+L169 -> 1001307 | B169: 2204 | C169: 访贤许由 | D169: =IF(E169="","",B169+1) -> 2205 | E169: 听一听这位尧帝口中的贤士有何说法 | F169: 106 | G169: =IF(F169="","",VLOOKUP(F169,EventNPC!A:E,5,FALSE)) -> 许由 | H169: =IF(I169="","",IF(L169=1,MAX(D169,B169)+1,MAX(B168,H168,D168,T168,V168)+1)) -> 2213 | I169: 今日又来，想是道心不定，执念未除。 | K169: 10013 | L169: =IF(K169=K168,L168+1,1) -> 7 | P169: =IF(N169="","","-"&VLOOKUP(N169,EventConditionConfig!A:C,3,FALSE)&IF(O169="","",CHAR(10)&"-"&VLOOKUP(O169,EventConditionConfig!A:C,3,FALSE))) ->  | Q169: 1 | R169: =A170 -> 1001308 | S169: 2214 | T169: 2214 | U169: 请前辈出山。 | AA169: =IF(A169="","",IF(Q169=1,"",IF(A170="",3,1))) ->  | AB169: =IF(AA169=1,A170,IF(AA169=3,LEFT(A169,5)+1,"")) -> 
A170: 1001308 | B170: 2204 | C170: 访贤许由 | D170: 2205 | E170: 听一听这位尧帝口中的贤士有何说法 | F170: 106 | G170: =IF(F170="","",VLOOKUP(F170,EventNPC!A:E,5,FALSE)) -> 许由 | H170: 2215 | I170: 哼，让我去？ | K170: 10013 | L170: 8 | P170: =IF(N170="","","-"&VLOOKUP(N170,EventConditionConfig!A:C,3,FALSE)&IF(O170="","",CHAR(10)&"-"&VLOOKUP(O170,EventConditionConfig!A:C,3,FALSE))) ->  | AA170: 1 | AB170: 1001309
A171: =K171*100+L171 -> 1001309 | B171: 2204 | C171: 访贤许由 | D171: =IF(E171="","",B171+1) -> 2205 | E171: 听一听这位尧帝口中的贤士有何说法 | F171: 106 | G171: =IF(F171="","",VLOOKUP(F171,EventNPC!A:E,5,FALSE)) -> 许由 | H171: =IF(I171="","",IF(L171=1,MAX(D171,B171)+1,MAX(B170,H170,D170,T170,V170)+1)) -> 2216 | I171: 那我问你，日月升天，照耀四方。若这时有人手举火把照路，岂不徒劳？ | K171: 10013 | L171: =IF(K171=K170,L170+1,1) -> 9 | P171: =IF(N171="","","-"&VLOOKUP(N171,EventConditionConfig!A:C,3,FALSE)&IF(O171="","",CHAR(10)&"-"&VLOOKUP(O171,EventConditionConfig!A:C,3,FALSE))) ->  | AA171: =IF(A171="","",IF(Q171=1,"",IF(A172="",3,1))) -> 1 | AB171: =IF(AA171=1,A172,IF(AA171=3,LEFT(A171,5)+1,"")) -> 1001310
A172: =K172*100+L172 -> 1001310 | B172: 2204 | C172: 访贤许由 | D172: =IF(E172="","",B172+1) -> 2205 | E172: 听一听这位尧帝口中的贤士有何说法 | F172: 106 | G172: =IF(F172="","",VLOOKUP(F172,EventNPC!A:E,5,FALSE)) -> 许由 | H172: =IF(I172="","",IF(L172=1,MAX(D172,B172)+1,MAX(B171,H171,D171,T171,V171)+1)) -> 2217 | I172: 那我再问你，斜风细雨，滋养万物。若这时有人用水桶来灌溉，岂不可笑？ | K172: 10013 | L172: =IF(K172=K171,L171+1,1) -> 10 | P172: =IF(N172="","","-"&VLOOKUP(N172,EventConditionConfig!A:C,3,FALSE)&IF(O172="","",CHAR(10)&"-"&VLOOKUP(O172,EventConditionConfig!A:C,3,FALSE))) ->  | AA172: =IF(A172="","",IF(Q172=1,"",IF(A173="",3,1))) -> 1 | AB172: =IF(AA172=1,A173,IF(AA172=3,LEFT(A172,5)+1,"")) -> 1001311
A173: =K173*100+L173 -> 1001311 | B173: 2204 | C173: 访贤许由 | D173: =IF(E173="","",B173+1) -> 2205 | E173: 听一听这位尧帝口中的贤士有何说法 | F173: 106 | G173: =IF(F173="","",VLOOKUP(F173,EventNPC!A:E,5,FALSE)) -> 许由 | H173: =IF(I173="","",IF(L173=1,MAX(D173,B173)+1,MAX(B172,H172,D172,T172,V172)+1)) -> 2218 | I173: 天下在尧的带领下，已经治理得很好了，又何必要我，我是要去混个功成名就吗？ | K173: 10013 | L173: =IF(K173=K172,L172+1,1) -> 11 | P173: =IF(N173="","","-"&VLOOKUP(N173,EventConditionConfig!A:C,3,FALSE)&IF(O173="","",CHAR(10)&"-"&VLOOKUP(O173,EventConditionConfig!A:C,3,FALSE))) ->  | AA173: =IF(A173="","",IF(Q173=1,"",IF(A174="",3,1))) -> 1 | AB173: =IF(AA173=1,A174,IF(AA173=3,LEFT(A173,5)+1,"")) -> 1001312
A174: =K174*100+L174 -> 1001312 | B174: 2204 | C174: 访贤许由 | D174: =IF(E174="","",B174+1) -> 2205 | E174: 听一听这位尧帝口中的贤士有何说法 | F174: 106 | G174: =IF(F174="","",VLOOKUP(F174,EventNPC!A:E,5,FALSE)) -> 许由 | H174: =IF(I174="","",IF(L174=1,MAX(D174,B174)+1,MAX(B173,H173,D173,T173,V173)+1)) -> 2219 | I174: 回答我？ | K174: 10013 | L174: =IF(K174=K173,L173+1,1) -> 12 | P174: =IF(N174="","","-"&VLOOKUP(N174,EventConditionConfig!A:C,3,FALSE)&IF(O174="","",CHAR(10)&"-"&VLOOKUP(O174,EventConditionConfig!A:C,3,FALSE))) ->  | Q174: 1 | R174: =A175 -> 1001313 | S174: 2220 | T174: 2220 | U174: 就算只得功成名就也不错。 | AA174: =IF(A174="","",IF(Q174=1,"",IF(A175="",3,1))) ->  | AB174: =IF(AA174=1,A175,IF(AA174=3,LEFT(A174,5)+1,"")) -> 
A175: 1001313 | B175: 2204 | C175: 访贤许由 | D175: 2205 | E175: 听一听这位尧帝口中的贤士有何说法 | F175: 106 | G175: =IF(F175="","",VLOOKUP(F175,EventNPC!A:E,5,FALSE)) -> 许由 | H175: 2221 | I175: 小友，名就像宾客一样，难道我们的一生是为了宾客吗？ | K175: 10013 | L175: 13 | P175: =IF(N175="","","-"&VLOOKUP(N175,EventConditionConfig!A:C,3,FALSE)&IF(O175="","",CHAR(10)&"-"&VLOOKUP(O175,EventConditionConfig!A:C,3,FALSE))) ->  | Q175: 1 | R175: =A176 -> 1001314 | S175: 2222 | T175: 2222 | U175: （愣住）......
A176: =K176*100+L176 -> 1001314 | B176: 2204 | C176: 访贤许由 | D176: =IF(E176="","",B176+1) -> 2205 | E176: 听一听这位尧帝口中的贤士有何说法 | F176: 106 | G176: =IF(F176="","",VLOOKUP(F176,EventNPC!A:E,5,FALSE)) -> 许由 | H176: =IF(I176="","",IF(L176=1,MAX(D176,B176)+1,MAX(B175,H175,D175,T175,V175)+1)) -> 2223 | I176: 他若真想修道，便该知“道不碍政，心自碍道”。 | K176: 10013 | L176: =IF(K176=K175,L175+1,1) -> 14 | P176: =IF(N176="","","-"&VLOOKUP(N176,EventConditionConfig!A:C,3,FALSE)&IF(O176="","",CHAR(10)&"-"&VLOOKUP(O176,EventConditionConfig!A:C,3,FALSE))) ->  | AA176: =IF(A176="","",IF(Q176=1,"",IF(A177="",3,1))) -> 1 | AB176: =IF(AA176=1,A177,IF(AA176=3,LEFT(A176,5)+1,"")) -> 1001315
A177: 1001315 | B177: 2204 | C177: 访贤许由 | D177: 2205 | E177: 听一听这位尧帝口中的贤士有何说法 | F177: 106 | G177: =IF(F177="","",VLOOKUP(F177,EventNPC!A:E,5,FALSE)) -> 许由 | H177: 2224 | I177: 若心不净，纵避千山万水，又有何用。 | K177: 10013 | L177: 15 | P177: =IF(N177="","","-"&VLOOKUP(N177,EventConditionConfig!A:C,3,FALSE)&IF(O177="","",CHAR(10)&"-"&VLOOKUP(O177,EventConditionConfig!A:C,3,FALSE))) ->  | Q177: 1 | R177: =A178 -> 1001316 | S177: =_xlfn.TEXTJOIN(";",1,T177,V177) -> 2225 | T177: =IF(U177="","",H177+1) -> 2225 | U177: （愣住）......
A178: 1001316 | B178: 2204 | C178: 访贤许由 | D178: 2205 | E178: 听一听这位尧帝口中的贤士有何说法 | G178: =IF(F178="","",VLOOKUP(F178,EventNPC!A:E,5,FALSE)) ->  | K178: 10013 | L178: 16 | P178: =IF(N178="","","-"&VLOOKUP(N178,EventConditionConfig!A:C,3,FALSE)&IF(O178="","",CHAR(10)&"-"&VLOOKUP(O178,EventConditionConfig!A:C,3,FALSE))) ->  | S178: =_xlfn.TEXTJOIN(";",1,T178,V178) ->  | T178: =IF(U178="","",H178+1) ->  | AA178: 3 | AB178: 10014
P179: =IF(N179="","","-"&VLOOKUP(N179,EventConditionConfig!A:C,3,FALSE)&IF(O179="","",CHAR(10)&"-"&VLOOKUP(O179,EventConditionConfig!A:C,3,FALSE))) -> 
A180: =K180*100+L180 -> 1001401 | B180: =IF(B179="",MAX(V178,T178,H178,B178,D178,V177,T177,H177)+1,B179) -> 2226 | C180: 割草喝茶 | D180: =IF(E180="","",B180+1) ->  | F180: 106 | G180: =IF(F180="","",VLOOKUP(F180,EventNPC!A:E,5,FALSE)) -> 许由 | H180: =IF(I180="","",IF(L180=1,MAX(D180,B180)+1,MAX(B179,H179,D179,T179,V179)+1)) -> 2227 | I180: （转身望向屋后的山坡）你来得也巧，我正想在开辟一块新药田。 | K180: =IF(K179="",K178+1,K179) -> 10014 | L180: =IF(K180=K179,L179+1,1) -> 1 | P180: =IF(N180="","","-"&VLOOKUP(N180,EventConditionConfig!A:C,3,FALSE)&IF(O180="","",CHAR(10)&"-"&VLOOKUP(O180,EventConditionConfig!A:C,3,FALSE))) ->  | S180: =_xlfn.TEXTJOIN(";",1,T180,V180) ->  | T180: =IF(U180="","",H180+1) ->  | V180: =IF(W180="","",T180+1) ->  | AA180: =IF(A180="","",IF(Q180=1,"",IF(A181="",3,1))) -> 1 | AB180: =IF(AA180=1,A181,IF(AA180=3,LEFT(A180,5)+1,"")) -> 1001402
A181: =K181*100+L181 -> 1001402 | B181: 2226 | C181: 割草喝茶 | D181: =IF(E181="","",B181+1) ->  | F181: 106 | G181: =IF(F181="","",VLOOKUP(F181,EventNPC!A:E,5,FALSE)) -> 许由 | H181: =IF(I181="","",IF(L181=1,MAX(D181,B181)+1,MAX(B180,H180,D180,T180,V180)+1)) -> 2228 | I181: 后山有一块不错的地，离家有一点远平时我也懒得去打理，正好你来了帮我开辟出来吧。 | K181: 10014 | L181: =IF(K181=K180,L180+1,1) -> 2 | P181: =IF(N181="","","-"&VLOOKUP(N181,EventConditionConfig!A:C,3,FALSE)&IF(O181="","",CHAR(10)&"-"&VLOOKUP(O181,EventConditionConfig!A:C,3,FALSE))) ->  | Q181: 1 | R181: =A182 -> 1001403 | S181: 2229 | T181: 2229 | U181: ……前辈是让我干农活吗 | AA181: =IF(A181="","",IF(Q181=1,"",IF(A182="",3,1))) ->  | AB181: =IF(AA181=1,A182,IF(AA181=3,LEFT(A181,5)+1,"")) -> 
A182: 1001403 | B182: 2226 | C182: 割草喝茶 | F182: 106 | G182: =IF(F182="","",VLOOKUP(F182,EventNPC!A:E,5,FALSE)) -> 许由 | H182: 2230 | I182: （笑）哈哈，正是，帮我清理一下灵田，回来请你喝茶。 | K182: 10014 | L182: 3 | M182: =_xlfn.TEXTJOIN(";",1,N182:O182) ->  | P182: =IF(N182="","","-"&VLOOKUP(N182,EventConditionConfig!A:C,3,FALSE)&IF(O182="","",CHAR(10)&"-"&VLOOKUP(O182,EventConditionConfig!A:C,3,FALSE))) ->  | AA182: 1 | AB182: 1001404
A183: =K183*100+L183 -> 1001404 | B183: 2226 | C183: 割草喝茶 | D183: =IF(E183="","",B183+1) ->  | F183: 106 | G183: =IF(F183="","",VLOOKUP(F183,EventNPC!A:E,5,FALSE)) -> 许由 | H183: =IF(I183="","",IF(L183=1,MAX(D183,B183)+1,MAX(B182,H182,D182,T182,V182)+1)) -> 2231 | I183: 对了，在哪些杂草中不也会生长着一些药效不错的药草，这些药草在杂草中没有更好的成长起来，如果发现了药草帮我收集一些药草的种子回来。 | K183: 10014 | L183: =IF(K183=K182,L182+1,1) -> 4 | M183: =_xlfn.TEXTJOIN(";",1,N183:O183) ->  | P183: =IF(N183="","","-"&VLOOKUP(N183,EventConditionConfig!A:C,3,FALSE)&IF(O183="","",CHAR(10)&"-"&VLOOKUP(O183,EventConditionConfig!A:C,3,FALSE))) ->  | AA183: =IF(A183="","",IF(Q183=1,"",IF(A184="",3,1))) -> 1 | AB183: =IF(AA183=1,A184,IF(AA183=3,LEFT(A183,5)+1,"")) -> 1001405
A184: =K184*100+L184 -> 1001405 | B184: 2226 | C184: 割草喝茶 | D184: =IF(E184="","",B184+1) ->  | F184: 106 | G184: =IF(F184="","",VLOOKUP(F184,EventNPC!A:E,5,FALSE)) -> 许由 | H184: =IF(I184="","",IF(L184=1,MAX(D184,B184)+1,MAX(B183,H183,D183,T183,V183)+1)) -> 2232 | I184: 在开辟的过程中也请小心一点，后山也经常有妖怪出没。 | K184: 10014 | L184: =IF(K184=K183,L183+1,1) -> 5 | M184: =_xlfn.TEXTJOIN(";",1,N184:O184) -> 10;11 | N184: 10 | O184: 11 | P184: =IF(N184="","","-"&VLOOKUP(N184,EventConditionConfig!A:C,3,FALSE)&IF(O184="","",CHAR(10)&"-"&VLOOKUP(O184,EventConditionConfig!A:C,3,FALSE))) -> -击败后山小妖 -收集灵草种子 | AA184: =IF(A184="","",IF(Q184=1,"",IF(A185="",3,1))) -> 1 | AB184: =IF(AA184=1,A185,IF(AA184=3,LEFT(A184,5)+1,"")) -> 1001406
A185: 1001406 | B185: 2226 | C185: 割草喝茶 | G185: =IF(F185="","",VLOOKUP(F185,EventNPC!A:E,5,FALSE)) ->  | H185: 2233 | I185: （你回到屋前，满身草屑与泥土，许由在烧水，煮茶） | K185: 10014 | L185: 6 | P185: =IF(N185="","","-"&VLOOKUP(N185,EventConditionConfig!A:C,3,FALSE)&IF(O185="","",CHAR(10)&"-"&VLOOKUP(O185,EventConditionConfig!A:C,3,FALSE))) ->  | AA185: 1 | AB185: 1001407
A186: =K186*100+L186 -> 1001407 | B186: 2226 | C186: 割草喝茶 | D186: =IF(E186="","",B186+1) ->  | F186: 106 | G186: =IF(F186="","",VLOOKUP(F186,EventNPC!A:E,5,FALSE)) -> 许由 | H186: =IF(I186="","",IF(L186=1,MAX(D186,B186)+1,MAX(B185,H185,D185,T185,V185)+1)) -> 2234 | I186: 动得挺快。坐，喝口茶。 | K186: 10014 | L186: =IF(K186=K185,L185+1,1) -> 7 | M186: =_xlfn.TEXTJOIN(";",1,N186:O186) ->  | P186: =IF(N186="","","-"&VLOOKUP(N186,EventConditionConfig!A:C,3,FALSE)&IF(O186="","",CHAR(10)&"-"&VLOOKUP(O186,EventConditionConfig!A:C,3,FALSE))) ->  | Q186: =IF(U186="","",1) -> 1 | R186: =IF(Q186=1,A187,"") -> 1001408 | S186: 2235 | T186: 2235 | U186: 多谢前辈。 | AA186: =IF(A186="","",IF(Q186=1,"",IF(A187="",3,1))) ->  | AB186: =IF(AA186=1,A187,IF(AA186=3,LEFT(A186,5)+1,"")) -> 
A187: =K187*100+L187 -> 1001408 | B187: 2226 | C187: 割草喝茶 | D187: =IF(E187="","",B187+1) ->  | G187: =IF(F187="","",VLOOKUP(F187,EventNPC!A:E,5,FALSE)) ->  | H187: =IF(I187="","",IF(L187=1,MAX(D187,B187)+1,MAX(B186,H186,D186,T186,V186)+1)) -> 2236 | I187: （你获得了永久属性提升）（此处需要进一步处理） | K187: 10014 | L187: =IF(K187=K186,L186+1,1) -> 8 | M187: =_xlfn.TEXTJOIN(";",1,N187:O187) ->  | P187: =IF(N187="","","-"&VLOOKUP(N187,EventConditionConfig!A:C,3,FALSE)&IF(O187="","",CHAR(10)&"-"&VLOOKUP(O187,EventConditionConfig!A:C,3,FALSE))) ->  | Q187: =IF(U187="","",1) ->  | R187: =IF(Q187=1,A188,"") ->  | AA187: =IF(A187="","",IF(Q187=1,"",IF(A188="",3,1))) -> 3 | AB187: =IF(AA187=1,A188,IF(AA187=3,LEFT(A187,5)+1,"")) -> 10015
A189: =K189*100+L189 -> 1001501 | B189: =IF(B188="",MAX(V187,T187,H187,B187,D187,V186,T186,H186)+1,B188) -> 2237 | C189: 再来一杯 | D189: =IF(E189="","",B189+1) ->  | F189: 106 | G189: =IF(F189="","",VLOOKUP(F189,EventNPC!A:E,5,FALSE)) -> 许由 | H189: =IF(I189="","",IF(L189=1,MAX(D189,B189)+1,MAX(B188,H188,D188,T188,V188)+1)) -> 2238 | I189: 今天的风有点不对，开来昨日你在后山的动静不小呀，山那头怕是要来些不速之客。 | K189: =IF(K188="",K187+1,K188) -> 10015 | L189: =IF(K189=K188,L188+1,1) -> 1 | M189: =_xlfn.TEXTJOIN(";",1,N189:O189) ->  | P189: =IF(N189="","","-"&VLOOKUP(N189,EventConditionConfig!A:C,3,FALSE)&IF(O189="","",CHAR(10)&"-"&VLOOKUP(O189,EventConditionConfig!A:C,3,FALSE))) ->  | Q189: =IF(U189="","",1) ->  | R189: =IF(Q189=1,A190,"") ->  | S189: =_xlfn.TEXTJOIN(";",1,T189,V189) ->  | T189: =IF(U189="","",H189+1) ->  | V189: =IF(W189="","",T189+1) ->  | AA189: =IF(A189="","",IF(Q189=1,"",IF(A190="",3,1))) -> 1 | AB189: =IF(AA189=1,A190,IF(AA189=3,LEFT(A189,5)+1,"")) -> 1001502
A190: =K190*100+L190 -> 1001502 | B190: 2237 | C190: 再来一杯 | D190: =IF(E190="","",B190+1) ->  | F190: 106 | G190: =IF(F190="","",VLOOKUP(F190,EventNPC!A:E,5,FALSE)) -> 许由 | H190: =IF(I190="","",IF(L190=1,MAX(D190,B190)+1,MAX(B189,H189,D189,T189,V189)+1)) -> 2239 | I190: 你才帮我弄好灵草种子和灵田，别让妖兽给毁了。 | K190: 10015 | L190: =IF(K190=K189,L189+1,1) -> 2 | M190: =_xlfn.TEXTJOIN(";",1,N190:O190) ->  | P190: =IF(N190="","","-"&VLOOKUP(N190,EventConditionConfig!A:C,3,FALSE)&IF(O190="","",CHAR(10)&"-"&VLOOKUP(O190,EventConditionConfig!A:C,3,FALSE))) ->  | AA190: =IF(A190="","",IF(Q190=1,"",IF(A191="",3,1))) -> 1 | AB190: =IF(AA190=1,A191,IF(AA190=3,LEFT(A190,5)+1,"")) -> 1001503
A191: =K191*100+L191 -> 1001503 | B191: 2237 | C191: 再来一杯 | D191: =IF(E191="","",B191+1) ->  | F191: 106 | G191: =IF(F191="","",VLOOKUP(F191,EventNPC!A:E,5,FALSE)) -> 许由 | H191: =IF(I191="","",IF(L191=1,MAX(D191,B191)+1,MAX(B190,H190,D190,T190,V190)+1)) -> 2240 | I191: 你去走一趟。 | K191: 10015 | L191: =IF(K191=K190,L190+1,1) -> 3 | M191: =_xlfn.TEXTJOIN(";",1,N191:O191) ->  | P191: =IF(N191="","","-"&VLOOKUP(N191,EventConditionConfig!A:C,3,FALSE)&IF(O191="","",CHAR(10)&"-"&VLOOKUP(O191,EventConditionConfig!A:C,3,FALSE))) ->  | Q191: 1 | R191: 1001504 | S191: 2241 | T191: 2241 | U191: 好的...... | AA191: =IF(A191="","",IF(Q191=1,"",IF(A192="",3,1))) ->  | AB191: =IF(AA191=1,A192,IF(AA191=3,LEFT(A191,5)+1,"")) -> 
A192: 1001504 | B192: 2237 | C192: 再来一杯 | G192: =IF(F192="","",VLOOKUP(F192,EventNPC!A:E,5,FALSE)) ->  | K192: 10015 | L192: 4 | M192: 12 | N192: 12 | P192: =IF(N192="","","-"&VLOOKUP(N192,EventConditionConfig!A:C,3,FALSE)&IF(O192="","",CHAR(10)&"-"&VLOOKUP(O192,EventConditionConfig!A:C,3,FALSE))) -> -击败夜袭的妖兽 | AA192: 1 | AB192: 1001505
A193: 1001505 | B193: 2237 | C193: 再来一杯 | G193: =IF(F193="","",VLOOKUP(F193,EventNPC!A:E,5,FALSE)) ->  | H193: 2238 | I193: （回到屋前，看到许由又在烧水，煮茶，和上次一样） | K193: 10015 | L193: 5 | P193: =IF(N193="","","-"&VLOOKUP(N193,EventConditionConfig!A:C,3,FALSE)&IF(O193="","",CHAR(10)&"-"&VLOOKUP(O193,EventConditionConfig!A:C,3,FALSE))) ->  | AA193: 1 | AB193: 1001506
A194: =K194*100+L194 -> 1001506 | B194: 2237 | C194: 再来一杯 | D194: =IF(E194="","",B194+1) ->  | F194: 106 | G194: =IF(F194="","",VLOOKUP(F194,EventNPC!A:E,5,FALSE)) -> 许由 | H194: =IF(I194="","",IF(L194=1,MAX(D194,B194)+1,MAX(B193,H193,D193,T193,V193)+1)) -> 2239 | I194: 来，喝茶。 | K194: 10015 | L194: =IF(K194=K193,L193+1,1) -> 6 | M194: =_xlfn.TEXTJOIN(";",1,N194:O194) ->  | P194: =IF(N194="","","-"&VLOOKUP(N194,EventConditionConfig!A:C,3,FALSE)&IF(O194="","",CHAR(10)&"-"&VLOOKUP(O194,EventConditionConfig!A:C,3,FALSE))) ->  | AA194: =IF(A194="","",IF(Q194=1,"",IF(A195="",3,1))) -> 1 | AB194: =IF(AA194=1,A195,IF(AA194=3,LEFT(A194,5)+1,"")) -> 1001507
A195: =K195*100+L195 -> 1001507 | B195: 2237 | C195: 再来一杯 | D195: =IF(E195="","",B195+1) ->  | F195: 100 | G195: =IF(F195="","",VLOOKUP(F195,EventNPC!A:E,5,FALSE)) -> 玩家 | H195: =IF(I195="","",IF(L195=1,MAX(D195,B195)+1,MAX(B194,H194,D194,T194,V194)+1)) -> 2240 | I195: （心中默念...这个精英妖兽，可费我一些功夫，怎么又是茶？） | K195: 10015 | L195: =IF(K195=K194,L194+1,1) -> 7 | M195: =_xlfn.TEXTJOIN(";",1,N195:O195) ->  | P195: =IF(N195="","","-"&VLOOKUP(N195,EventConditionConfig!A:C,3,FALSE)&IF(O195="","",CHAR(10)&"-"&VLOOKUP(O195,EventConditionConfig!A:C,3,FALSE))) ->  | Q195: 1 | R195: 1001508 | S195: 2241 | T195: 2241 | U195: （你没说话，默默喝下） | AA195: =IF(A195="","",IF(Q195=1,"",IF(A196="",3,1))) ->  | AB195: =IF(AA195=1,A196,IF(AA195=3,LEFT(A195,5)+1,"")) -> 
A196: 1001508 | B196: 2237 | C196: 再来一杯 | G196: =IF(F196="","",VLOOKUP(F196,EventNPC!A:E,5,FALSE)) ->  | H196: 2242 | I196: （你获得了永久属性提升）（此处需要进一步处理） | K196: 10015 | L196: 8 | P196: =IF(N196="","","-"&VLOOKUP(N196,EventConditionConfig!A:C,3,FALSE)&IF(O196="","",CHAR(10)&"-"&VLOOKUP(O196,EventConditionConfig!A:C,3,FALSE))) ->  | AA196: 3 | AB196: 10016
A198: =K198*100+L198 -> 1001601 | B198: =IF(B197="",MAX(V196,T196,H196,B196,D196,V195,T195,H195)+1,B197) -> 2243 | C198: 战胜妖王 | D198: =IF(E198="","",B198+1) ->  | G198: =IF(F198="","",VLOOKUP(F198,EventNPC!A:E,5,FALSE)) ->  | H198: =IF(I198="","",IF(L198=1,MAX(D198,B198)+1,MAX(B197,H197,D197,T197,V197)+1)) -> 2244 | I198: （次日清晨，山顶云气升腾，许由站在灵田边，看着远山） | K198: =IF(K197="",K196+1,K197) -> 10016 | L198: =IF(K198=K197,L197+1,1) -> 1 | M198: =_xlfn.TEXTJOIN(";",1,N198:O198) ->  | P198: =IF(N198="","","-"&VLOOKUP(N198,EventConditionConfig!A:C,3,FALSE)&IF(O198="","",CHAR(10)&"-"&VLOOKUP(O198,EventConditionConfig!A:C,3,FALSE))) ->  | Q198: =IF(U198="","",1) ->  | R198: =IF(Q198=1,A199,"") ->  | S198: =_xlfn.TEXTJOIN(";",1,T198,V198) ->  | T198: =IF(U198="","",H198+1) ->  | V198: =IF(W198="","",T198+1) ->  | AA198: =IF(A198="","",IF(Q198=1,"",IF(A199="",3,1))) -> 1 | AB198: =IF(AA198=1,A199,IF(AA198=3,LEFT(A198,5)+1,"")) -> 1001602
A199: =K199*100+L199 -> 1001602 | B199: 2243 | C199: 战胜妖王 | D199: =IF(E199="","",B199+1) ->  | G199: =IF(F199="","",VLOOKUP(F199,EventNPC!A:E,5,FALSE)) ->  | H199: =IF(I199="","",IF(L199=1,MAX(D199,B199)+1,MAX(B198,H198,D198,T198,V198)+1)) -> 2245 | I199: 先前的妖兽，被你压了下去。可峰顶还有一头老家伙，脾气大。 | K199: 10016 | L199: =IF(K199=K198,L198+1,1) -> 2 | M199: =_xlfn.TEXTJOIN(";",1,N199:O199) ->  | P199: =IF(N199="","","-"&VLOOKUP(N199,EventConditionConfig!A:C,3,FALSE)&IF(O199="","",CHAR(10)&"-"&VLOOKUP(O199,EventConditionConfig!A:C,3,FALSE))) ->  | Q199: 1 | R199: 1001603 | S199: 2246 | T199: 2246 | U199: 前辈可是希望我去处理？ | AA199: =IF(A199="","",IF(Q199=1,"",IF(A200="",3,1))) ->  | AB199: =IF(AA199=1,A200,IF(AA199=3,LEFT(A199,5)+1,"")) -> 
A200: 1001603 | B200: 2243 | C200: 战胜妖王 | F200: 106 | G200: =IF(F200="","",VLOOKUP(F200,EventNPC!A:E,5,FALSE)) -> 许由 | H200: 2247 | I200: （淡笑）去吧，你可以应付的。 | K200: 10016 | L200: 3 | P200: =IF(N200="","","-"&VLOOKUP(N200,EventConditionConfig!A:C,3,FALSE)&IF(O200="","",CHAR(10)&"-"&VLOOKUP(O200,EventConditionConfig!A:C,3,FALSE))) ->  | AA200: 1 | AB200: 1001604
A201: 1001604 | B201: 2243 | C201: 战胜妖王 | D201: =IF(E201="","",B201+1) ->  | G201: =IF(F201="","",VLOOKUP(F201,EventNPC!A:E,5,FALSE)) ->  | H201: =IF(I201="","",IF(L201=1,MAX(D201,B201)+1,MAX(B200,H200,D200,T200,V200)+1)) ->  | K201: 10016 | L201: =IF(K201=K200,L200+1,1) -> 4 | M201: =_xlfn.TEXTJOIN(";",1,N201:O201) -> 13 | N201: 13 | P201: =IF(N201="","","-"&VLOOKUP(N201,EventConditionConfig!A:C,3,FALSE)&IF(O201="","",CHAR(10)&"-"&VLOOKUP(O201,EventConditionConfig!A:C,3,FALSE))) -> -击败峰顶的妖王 | AA201: =IF(A201="","",IF(Q201=1,"",IF(A202="",3,1))) -> 1 | AB201: =IF(AA201=1,A202,IF(AA201=3,LEFT(A201,5)+1,"")) -> 1001605
A202: =K202*100+L202 -> 1001605 | B202: 2243 | C202: 战胜妖王 | G202: =IF(F202="","",VLOOKUP(F202,EventNPC!A:E,5,FALSE)) ->  | H202: 2244 | I202: （你回到屋前，略显疲惫，许由依然在烧水，煮茶） | K202: 10016 | L202: 5 | P202: =IF(N202="","","-"&VLOOKUP(N202,EventConditionConfig!A:C,3,FALSE)&IF(O202="","",CHAR(10)&"-"&VLOOKUP(O202,EventConditionConfig!A:C,3,FALSE))) ->  | AA202: 1 | AB202: 1001606
A203: =K203*100+L203 -> 1001606 | B203: 2243 | C203: 战胜妖王 | D203: =IF(E203="","",B203+1) ->  | F203: 106 | G203: =IF(F203="","",VLOOKUP(F203,EventNPC!A:E,5,FALSE)) -> 许由 | H203: =IF(I203="","",IF(L203=1,MAX(D203,B203)+1,MAX(B202,H202,D202,T202,V202)+1)) -> 2245 | I203: （不动声色，递茶）喝吧。 | K203: 10016 | L203: =IF(K203=K202,L202+1,1) -> 6 | M203: =_xlfn.TEXTJOIN(";",1,N203:O203) ->  | P203: =IF(N203="","","-"&VLOOKUP(N203,EventConditionConfig!A:C,3,FALSE)&IF(O203="","",CHAR(10)&"-"&VLOOKUP(O203,EventConditionConfig!A:C,3,FALSE))) ->  | AA203: =IF(A203="","",IF(Q203=1,"",IF(A204="",3,1))) -> 1 | AB203: =IF(AA203=1,A204,IF(AA203=3,LEFT(A203,5)+1,"")) -> 1001607
... 92 more rows

Sheet EventConditionConfig
A1: ID | B1: message | E1: Operation | G1: ConditionType | H1: ConditionPara | I1: finishCount
A2: int | B2: int | E2: int | G2: int | H2: int[] | I2: int
A4: ID | B4: 描述 | E4: 与0 或1 | G4: 条件判断类型 | H4: 条件判断值 | I4: 条件完成次数or数量 | J4: 提示 | K4: 跳转
A5: 1 | B5: 2078 | C5: 拥有金币 | D5: =CONCATENATE("- ",C5,"{0}/{1}") -> - 拥有金币{0}/{1} | G5: 1 | H5: 1001 | I5: 10
A6: 2 | B6: 2079 | C6: 达到境界：筑基-中期 | D6: =CONCATENATE("- ",C6,"{0}/{1}") -> - 达到境界：筑基-中期{0}/{1} | G6: 3 | H6: 11 | I6: 1
A7: 3 | B7: 2080 | C7: 击杀魔休 | D7: - 击杀魔休{0}/{1} | G7: 5 | H7: 1001 | I7: 5
A8: 4 | B8: 2081 | C8: 获得钻石 | D8: - 获得钻石{0}/{1} | G8: 6 | H8: 1002 | I8: 10
A9: 5 | B9: 2082 | C9: 使用神识 | D9: - 使用神识{0}/{1} | G9: 8 | I9: 1
A10: 6 | B10: 2094 | C10: 继续飞行一段时间 | D10: - 继续飞行一段时间{0}/{1} | G10: 9 | I10: 6
A11: 7 | B11: 2843 | C11: 击败结界兽 | D11: - 击败结界兽{0}/{1} | G11: 5 | H11: 1002 | I11: 1
A12: 8 | B12: 2844 | C12: 达到境界：筑基-后期 | D12: - 达到境界：筑基-后期{0}/{1} | G12: 3 | H12: 21 | I12: 1
A13: 9 | B13: 2845 | C13: 击杀妖兽 | D13: - 击杀妖兽{0}/{1} | G13: 5 | H13: 1003 | I13: 1
A14: 10 | B14: 2846 | C14: 击败后山小妖 | D14: - 击败后山小妖{0}/{1} | G14: 5 | H14: 1004 | I14: 3
A15: 11 | B15: 2847 | C15: 收集灵草种子 | D15: - 收集灵草种子{0}/{1} | G15: 6 | H15: 1002 | I15: 3
A16: 12 | B16: 2848 | C16: 击败夜袭的妖兽 | D16: - 击败夜袭的妖兽{0}/{1} | G16: 5 | H16: 1005 | I16: 1
A17: 13 | B17: 2849 | C17: 击败峰顶的妖王 | D17: - 击败峰顶的妖王{0}/{1} | G17: 5 | H17: 1006 | I17: 1
A18: 14 | B18: 2850 | C18: 境界达到[金丹-前期] | D18: - 境界达到[金丹-前期]{0}/{1} | G18: 3 | H18: 31 | I18: 1
A19: 15 | B19: 2851 | C19: 击败仙山的阵眼妖兽 | D19: - 击败仙山的阵眼妖兽{0}/{1} | G19: 5 | H19: 1007 | I19: 1
A20: 17 | B20: 2852 | C20: 击杀灵兽获得天肥 | D20: =CONCATENATE("- ",C20,"{0}/{1}") -> - 击杀灵兽获得天肥{0}/{1} | G20: 5 | H20: 1008 | I20: 1

Sheet 条件类型查询
A1: ID | B1: 条件判断类型 | C1: 条件判断值 | D1: 条件完成次数or数量 | E1: 额外文本 | F1: 不可用 | G1: 是否可用于事件
A2: 1 | B2: 拥有特定道具 | C2: 道具ID | D2: 数量≥ | E2: 检测背包道具 | G2: 1
A3: 2 | B3: 灵根判定 | C3: 哪个灵根 | D3: 灵根值≥ | F3: 1
A4: 3 | B4: 境界判断 | C4: 境界id | G4: 1
A5: 5 | B5: 战斗胜利 | C5: 战斗组ID | D5: 胜利次数≥
A6: 6 | B6: 获得道具 | C6: 道具的ID | D6: 数量≥ | E6: 探测出事件才开始检测
A7: 7 | B7: 触发概率 | C7: 概率值 1000=100% | G7: 1
A8: 8 | B8: 使用神识 | D8: 数量≥
A9: 9 | B9: 游戏在线多少时长（秒） | D9: 时间≥（秒） | G9: 1

Sheet EventNPC
A1: ID | B1: name | C1: ID | D1: DaoyouID
A2: int | B2: int | C2: int | D2: int
A4: ID | B4: 名字 | C4: 半身像icon | D4: 道友ID | E4: 名称
A5: 1 | E5: 玩家
A6: 2 | D6: 1 | E6: 道友1
A7: 3 | D7: 2 | E7: 道友2
A8: 4 | D8: 3 | E8: 道友3
A9: 5 | D9: 4 | E9: 道友4
A10: 6 | D10: 5 | E10: 道友5
A11: 7 | D11: 6 | E11: 道友6
A12: 8 | D12: 7 | E12: 道友7
A13: 9 | D13: 8 | E13: 道友8
A14: 10 | D14: 9 | E14: 道友9
A15: 11 | D15: 10 | E15: 道友10
A17: 100 | B17: 3000 | E17: 玩家
A18: 101 | B18: 3001 | E18: 蜩鸟
A19: 102 | B19: 3002 | E19: 小麻雀
A20: 103 | B20: 3003 | E20: 疯道人
A21: 104 | B21: 3004 | E21: 痴道人
A22: 105 | B22: 3005 | E22: 尧帝
A23: 106 | B23: 3006 | E23: 许由
A24: 107 | B24: 3007 | E24: 村名甲
A25: 108 | B25: 3008 | E25: 村名乙
A26: 109 | B26: 3009 | E26: 村名丙
A27: 110 | B27: 3010 | E27: 樗木之灵
A28: 111 | E28: 惠子

Sheet XianTuLogConfig
A1: ID | B1: EventType | C1: Title | D1: Desc | E1: BigMapID
A2: int | B2: int | C2: int | D2: int | E2: int
A4: ID | B4: 1主线 2事件 | C4: 名称 | D4: 描述 | E4: 属于哪个章节
A5: 1 | B5: 1 | C5: 2087 | D5: 2089 | E5: 1 | F5: 第一章.逍遥游 | G5: 多次渡劫失败的你，误入“无何有之乡”，在这里受到了列子的指引，踏上了寻找七道心境的修仙之路。
A6: 2 | B6: 2 | C6: 2088 | D6: 2090 | E6: 1 | F6: 无用的大葫芦 | G6: 惠子种出了巨大葫芦，他觉得毫无用处，非常生气！
A7: 3 | B7: 2 | C7: 2088 | D7: 2090 | E7: 2 | F7: 无用的大葫芦 | G7: 惠子种出了巨大葫芦，他觉得毫无用处，非常生气！
A8: 4 | B8: 2 | C8: 2088 | D8: 2090 | E8: 3 | F8: 无用的大葫芦 | G8: 惠子种出了巨大葫芦，他觉得毫无用处，非常生气！
